Cogmind - Beta 11.1 @@@ ROGUE MODE // 2022.06.21 @ 08:29:51 Player: Benkyo Result: Heading to fleet! Performance ------------- Evolutions (9) 4500 Regions Visited (33) 6600 Robots Destroyed (446) 2230 Value Destroyed (23100) 23100 Prototype IDs (86) 1720 Alien Tech Used (6) 1200 Bonus (26509) 26509 TOTAL SCORE: 65859 Bonus ------- Triggered High Security 500 High Alert Combat Kills 8638 Follower Combat Kills 5542 Network Hubs Disabled 200 Aligned with FarCom 300 Met Data Miner 300 Destroyed Z-Imprinter 1000 Triggered Deep Caves Wall 500 Exposed GOLEM Chamber 500 Met Zhirov 300 Built Enhanced Grunts 300 A7 Reached Mainframe 300 Met R17 at Cetus 500 Found Hidden Lab 3000 Used Core Reset Matrix 3000 Scanned by Researcher 500 Win 3000 Friendly Fire -1871 Cogmind --------- Core Integrity 916/1600 Matter 83/300 Energy 98/100 System Corruption 23% Temperature Cool (0) Movement Core (50) Location To Fleet Rendezvous Parts ------- > --- POWER (4) -------- (None) > --- PROPULSION (6) --- Assembled Alloy Leg Centrium Leg > --- UTILITY (13) ----- GOLEM Unit > --- WEAPON (3) ------- (None) > --- INVENTORY (5) ---- Antimissile System Ragnarok Missile Launcher Peak State ------------ > --- POWER ------------ Assembled Flux Generator Light Quantum Reactor Light Quantum Reactor > --- PROPULSION ------- Assembled Alloy Leg Assembled Alloy Leg Centrium Leg Centrium Leg Centrium Leg Centrium Leg > --- UTILITY ---------- High-capacity Storage Unit Assembled Biocell Array Assembled Suspension Frame Advanced Visual Processing Unit Advanced Terrain Scan Processor Assembled Combat Suite Nanoactuators Layered Heavy Armor Plating Assembled Alloy Armor Assembled Alloy Armor GOLEM Unit > --- WEAPON ----------- Assembled Focal Cannon Assembled Focal Cannon Assembled Focal Cannon > --- INVENTORY -------- Centrium Heavy Treads Biometal Heavy Treads Centrium Leg Centrium Leg Advanced Energy Well Advanced Terrain Scanner Experimental Actuator Array Makeshift Transmission Jammer Advanced ECM Suite Improved Heavy Armor Plating Medium Regenerative Plating Graphene Brace Antimissile System GOLEM Unit Transdimensional Reconstructor Core Regenerator [Rating: 220] Favorites ----------- Power Assembled Flux Generator Engine Improved Ion Engine Power Core Reinforced Fission Core Reactor Assembled Flux Generator Propulsion Assembled Alloy Leg Treads Light Treads Leg Assembled Alloy Leg Wheel Armored Huge Wheel Hover Unit Zionite Glidesys I Utility Assembled Biocell Array Device GOLEM Unit Storage Assembled Biocell Array Processor Advanced Signal Interpreter Hackware Hacking Suite Protection Assembled Alloy Armor Weapon Assembled Focal Cannon Energy Gun Zionite Phaser-S Energy Cannon Assembled Focal Cannon Ballistic Gun Assault Rifle Ballistic Cannon Gauss Cannon Launcher Heavy Rocket Launcher Impact Weapon Powered Hammer Build | -11 -10 -10 -9 -9 -9 -8 -8 -7 -7 -7 -7 -7 -6 -6 -6 -6 -6 -5 -5 -5 -5 -5 -4 -4 -4 -4 -4 -4 -3 -3 -3 -2 -1 ------- Run | Scr Mat Min Mat Min Exi Min Mat Fac Low Low Zio Dee Pro Fac Low Low Dat Pro Fac Upp Upp Zhi Pro Fac Ext Cet Arc Hub Res Arm Lab Res Acc Slots Evolved 18 | . . . 2 . . . 2 2 . . . . . 2 . . . . 2 . . . . 2 . . . . 2 . . 2 2 Power 2 | . . . . . . . . 1 . . . . . . . . . . . . . . . . . . . . . . . 1 . Propulsion 4 | . . . . . . . . . . . . . . . . . . . . . . . . . . . . . 1 . . 1 2 Utility 11 | . . . 2 . . . 2 1 . . . . . 2 . . . . 2 . . . . 2 . . . . . . . . . Weapon 1 | . . . . . . . . . . . . . . . . . . . . . . . . . . . . . 1 . . . . Parts Attached 297 | 7 12 . 11 2 4 12 28 10 6 7 11 52 2 2 4 4 . 1 6 1 . 4 1 3 6 8 3 4 17 . 6 20 43 Power 35 | 1 1 . 2 . . 1 3 2 . . . 5 . . . 1 . 1 . . . 1 . . . 1 . . 2 . . 6 8 Engine 9 | 1 1 . 2 . . 1 2 1 . . . 1 . . . . . . . . . . . . . . . . . . . . . Core 7 | . . . . . . . 1 1 . . . 1 . . . . . . . . . . . . . . . . 1 . . 1 2 Reactor 19 | . . . . . . . . . . . . 3 . . . 1 . 1 . . . 1 . . . 1 . . 1 . . 5 6 Propulsion 42 | 2 2 . 2 . 1 3 5 2 . . . 6 . . . . . . . . . . . . . . . . 2 . 1 2 14 Treads 20 | 2 2 . 1 . . 3 5 . . . . 3 . . . . . . . . . . . . . . . . . . . . 4 Leg 15 | . . . . . . . . . . . . . . . . . . . . . . . . . . . . . 2 . 1 2 10 Wheel 6 | . . . 1 . 1 . . 2 . . . 2 . . . . . . . . . . . . . . . . . . . . . Hover 1 | . . . . . . . . . . . . 1 . . . . . . . . . . . . . . . . . . . . . Flight . | . . . . . . . . . . . . . . . . . . . . . . . . . . . . . . . . . . Utility 163 | 2 5 . 6 . 1 4 9 5 1 4 7 27 2 2 4 3 . . 6 1 . 3 . 3 6 7 3 4 13 . 5 12 18 Device 68 | 1 1 . 2 . . 1 3 1 1 4 3 7 1 . 2 2 . . 3 1 . 2 . 2 2 2 1 . 5 . 1 8 12 Storage 9 | 1 3 . 1 . . . . . . . . 2 . . . . . . . . . . . . . . . 1 . . 1 . . Processor 14 | . . . . . . . 1 2 . . 1 1 . . 1 1 . . . . . . . . . 2 . 1 1 . . 1 2 Hackware 8 | . . . . . . . 1 1 . . . . . . . . . . 2 . . . . . . . . . 4 . . . . Protection 64 | . 1 . 3 . 1 3 4 1 . . 3 17 1 2 1 . . . 1 . . 1 . 1 4 3 2 2 3 . 3 3 4 Artifact . | . . . . . . . . . . . . . . . . . . . . . . . . . . . . . . . . . . Weapon 57 | 2 4 . 1 2 2 4 11 1 5 3 4 14 . . . . . . . . . . 1 . . . . . . . . . 3 Energy Gun 6 | . . . . . . . . . . . . 6 . . . . . . . . . . . . . . . . . . . . . Energy Cannon 7 | . . . . . . 1 1 . 1 . 1 3 . . . . . . . . . . . . . . . . . . . . . Ballistic Gun 17 | 2 4 . 1 1 2 1 5 . . 1 . . . . . . . . . . . . . . . . . . . . . . . Ballistic Cannon 14 | . . . . . . 2 4 1 1 1 2 3 . . . . . . . . . . . . . . . . . . . . . Launcher 10 | . . . . 1 . . . . 2 1 . 2 . . . . . . . . . . 1 . . . . . . . . . 3 Special Weapon . | . . . . . . . . . . . . . . . . . . . . . . . . . . . . . . . . . . Impact Weapon 3 | . . . . . . . 1 . 1 . 1 . . . . . . . . . . . . . . . . . . . . . . Slashing Weapon . | . . . . . . . . . . . . . . . . . . . . . . . . . . . . . . . . . . Piercing Weapon . | . . . . . . . . . . . . . . . . . . . . . . . . . . . . . . . . . . Special Melee Weapon . | . . . . . . . . . . . . . . . . . . . . . . . . . . . . . . . . . . Unidentified Prototypes 24 | . . . . . . . . . . . 2 9 . . . 1 . . . . . 4 . . . 2 . 1 1 1 2 . 1 Corrupted Parts 2 | . . . . . . 1 . . . . . . . . . . . . . . . . . . . . . 1 . . . . . System Corruption 10 | . . . . . . 5 . . . . . . . . . . . . . . . . . . . . . 5 . . . . . Parts Lost 76 | . 2 . 2 . . 8 7 . . 1 . 15 1 . . . . 1 . . . . . . 3 . . 4 12 . . . 20 Power 11 | . 1 . . . . 1 . . . . . 1 . . . . . 1 . . . . . . . . . . 2 . . . 5 Propulsion 12 | . . . . . . 2 2 . . . . 3 . . . . . . . . . . . . . . . . 2 . . . 3 Utility 38 | . . . 2 . . 3 3 . . . . 10 1 . . . . . . . . . . . 3 . . 3 4 . . . 9 Weapon 15 | . 1 . . . . 2 2 . . 1 . 1 . . . . . . . . . . . . . . . 1 4 . . . 3 Highest Loss Streak 10 | . 1 . 2 . . 5 3 . . 1 . 6 1 . . . . 1 . . . . . . 1 . . 2 5 . . . 10 To Critical Strikes . | . . . . . . . . . . . . . . . . . . . . . . . . . . . . . . . . . . Average Slot Usage (%) 85 | . 99 100 100 100 100 99 99 95 92 92 88 85 68 72 73 74 75 74 76 77 77 76 77 74 76 79 78 76 80 80 75 87 82 Engine 5 | . 14 14 11 11 11 11 8 13 15 15 15 4 . . . . . . . . . . . . . . . . . . . . . Reactor 5 | . . . . . . . . . . . . 5 7 6 6 9 12 11 11 11 11 11 11 10 10 10 10 10 7 4 3 9 9 Treads 6 | . 27 28 18 22 21 22 17 4 . . . 7 . . . . . . . . . . . . . . . . . . . . . Leg 6 | . . . . . . . . . . . . . 14 13 13 12 12 11 11 11 11 11 11 10 10 10 9 10 12 13 12 16 21 Wheel 1 | . . . 3 . . . . 6 7 7 7 5 . . . . . . . . . . . . . . . . . . . . . Device 13 | . 13 . 12 11 11 11 26 14 15 18 21 8 14 13 12 12 12 12 12 10 11 13 16 20 13 7 13 15 15 22 17 16 15 Storage 10 | . 14 14 11 11 11 11 9 7 7 7 7 7 15 13 13 12 12 12 11 11 11 11 11 10 10 10 10 10 9 9 9 8 6 Processor 6 | . . . . . . . 3 15 15 15 15 12 . . 6 6 6 6 5 5 5 5 5 5 5 6 9 6 9 9 9 8 6 Hackware 1 | . . . . . . . . 7 7 3 . . . . . . . . 3 5 5 5 5 . . . . . 1 . . . . Protection 10 | . . 14 20 22 22 22 14 7 7 7 8 13 . 12 6 6 6 6 10 11 11 7 5 8 17 26 16 14 8 4 5 12 9 Energy Cannon 7 | . . . . . . . 3 . 6 7 2 2 15 13 13 12 12 12 11 11 11 11 10 10 10 10 10 9 12 12 11 12 9 Ballistic Gun 5 | . 28 28 22 21 22 12 9 7 2 . . . . . . . . . . . . . . . . . . . . . . . . Ballistic Cannon 1 | . . . . . . 8 4 7 1 2 7 2 . . . . . . . . . . . . . . . . . . . . . Naked Turns . | . . . . . . . . . . . . . . . . . . . . . . . . . . . . . . . . . . Heaviest Build 205 | 14 56 56 106 106 108 108 113 118 122 124 135 135 79 87 83 93 93 95 107 102 102 102 98 119 151 159 144 126 136 123 179 205 194 Greatest Support 200 | 40 40 40 40 40 40 40 42 40 28 28 28 60 60 60 60 60 60 60 60 60 60 60 60 80 80 60 80 80 88 83 108 136 200 Greatest Overweight (x) 9 | 1 1 1 8 2 8 5 2 9 4 4 4 9 2 1 1 1 1 1 1 3 1 1 3 1 2 2 4 2 2 1 2 1 1 Average Overweight (x) 1 | . . 1 3 2 2 2 2 6 4 4 3 2 1 1 1 1 1 1 1 1 1 1 1 1 1 2 1 1 1 1 1 1 . Largest Inventory Capacity 40 | 8 20 20 25 25 25 25 25 25 25 25 25 40 40 40 40 40 40 40 40 40 40 40 40 40 40 40 40 40 40 40 40 20 20 Average Capacity 31 | 7 14 20 23 25 25 25 25 25 25 25 25 28 40 40 40 40 40 40 40 40 40 40 40 40 40 40 40 40 40 40 25 20 19 Most Carried 40 | 8 19 20 25 25 25 25 25 25 25 25 25 40 40 40 40 40 37 39 40 40 40 40 40 40 39 40 40 40 40 37 40 20 20 Average Carried 30 | 4 12 19 22 24 24 22 24 24 24 24 24 24 37 38 39 38 37 37 39 39 39 39 39 37 37 39 37 38 37 36 25 19 18 Final Capacity 40 | 8 20 20 25 25 25 25 25 25 25 25 25 40 40 40 40 40 40 40 40 40 40 40 40 40 40 40 40 40 40 40 20 20 5 Final Carried 40 | 8 19 20 25 25 25 23 25 24 25 25 25 40 39 40 40 37 37 39 40 40 40 40 40 37 38 40 39 36 37 36 20 20 2 Class Distribution -------------------- 43% | Hauler-Golem 26% | Mutant 10% | Scavenger-Mutant 5% | Skirmisher 4% | Hauler-Mutant 3% | Generator-Golem Dominant Class ---------------- Mutant | -10/Materials Mutant | -10/Mines Mutant | -9/Materials Mutant | -9/Mines Scavenger-Mutant | -9/Exiles Scavenger-Mutant | -8/Mines Scavenger-Mutant | -8/Materials Skirmisher | -7/Factory Mutant | -7/Lower Caves Skirmisher | -7/Lower Caves Mutant | -7/Zion Mutant | -7/Deep Caves Hauler-Golem | -6/Proximity Caves Hauler-Golem | -6/Factory Hauler-Golem | -6/Lower Caves Hauler-Golem | -6/Lower Caves Hauler-Golem | -6/Data Miner Hauler-Golem | -5/Proximity Caves Hauler-Golem | -5/Factory Hauler-Golem | -5/Upper Caves Hauler-Golem | -5/Upper Caves Hauler-Golem | -5/Zhirov Hauler-Golem | -4/Proximity Caves Hauler-Golem | -4/Factory Hauler-Mutant | -4/Extension Hauler-Mutant | -4/Cetus Hauler-Golem | -4/Archives Hauler-Golem | -4/Hub_04(d) Hauler-Golem | -3/Research Hauler-Golem | -3/Armory Generator-Golem | -3/Lab Generator-Golem | -2/Research Generator-Skirmisher | -1/Access Resources | -11 -10 -10 -9 -9 -9 -8 -8 -7 -7 -7 -7 -7 -6 -6 -6 -6 -6 -5 -5 -5 -5 -5 -4 -4 -4 -4 -4 -4 -3 -3 -3 -2 -1 ----------- Run | Scr Mat Min Mat Min Exi Min Mat Fac Low Low Zio Dee Pro Fac Low Low Dat Pro Fac Upp Upp Zhi Pro Fac Ext Cet Arc Hub Res Arm Lab Res Acc Matter Collected 7013 | 379 518 33 520 59 . 322 959 163 284 447 70 924 15 . 58 50 . 10 60 10 . 50 57 58 58 90 30 30 249 . . 275 1235 Remotely . | . . . . . . . . . . . . . . . . . . . . . . . . . . . . . . . . . . Salvage Created 22965 | 159 543 29 697 25 . 439 1326 136 133 675 . 1676 749 96 485 214 . 1228 570 341 297 458 248 390 1272 283 401 2183 3203 . . 331 4378 Parts 1038 | 14 33 3 45 6 . 17 74 4 8 11 . 35 33 7 6 8 . 56 33 20 15 7 14 20 35 15 27 106 191 . . 23 172 Haulers Intercepted 8 | . 2 . 2 . . . 1 1 . . . . . . . . . . 1 . . . . . . . . . . . . . 1 Recyclers Shooed 6 | . . . 2 . . . 1 . . . . . . . . . . . . . . . . 1 2 . . . . . . . . Parts Field Recycled . | . . . . . . . . . . . . . . . . . . . . . . . . . . . . . . . . . . Retrieved Matter . | . . . . . . . . . . . . . . . . . . . . . . . . . . . . . . . . . . Parts Self-Destructed 186 | . . . . . . . . . 20 9 . . 34 . 2 4 . 65 . 20 15 4 13 . . . . . . . . . . Prevented 8 | . . . . . . . . . . . . . . . . 3 . 5 . . . . . . . . . . . . . . . Kills | -11 -10 -10 -9 -9 -9 -8 -8 -7 -7 -7 -7 -7 -6 -6 -6 -6 -6 -5 -5 -5 -5 -5 -4 -4 -4 -4 -4 -4 -3 -3 -3 -2 -1 ------- Run | Scr Mat Min Mat Min Exi Min Mat Fac Low Low Zio Dee Pro Fac Low Low Dat Pro Fac Upp Upp Zhi Pro Fac Ext Cet Arc Hub Res Arm Lab Res Acc Combat Hostiles Destroyed 405 | . 12 . 10 4 . 9 31 1 7 23 . 55 12 1 3 2 . 21 5 5 8 . 10 6 14 5 1 29 46 . . 4 81 Guns 58 | . 12 . 10 . . 6 16 1 . 1 . 12 . . . . . . . . . . . . . . . . . . . . . Cannons 226 | . . . . . . 3 12 . . 6 . 5 12 1 3 2 . 21 5 5 8 . 6 6 14 5 1 29 46 . . 4 32 AOE 115 | . . . . 4 . . 2 . 7 15 . 34 . . . . . . . . . . 4 . . . . . . . . . 49 Classes Destroyed 28 | 3 4 . 4 . . . 2 1 . 1 . 4 1 . . . . 2 . . . . . . . . . . 2 . . . 4 Worker 11 | 2 . . . . . 1 1 . . . . . . . . . . . . . . . . . . . . 2 . . . . 5 Builder 6 | . . . . . . . 1 . . . . . . . . . . . . . . . . . . . . . 1 . . . 4 Tunneler 4 | 3 . 1 . . . . . . . . . . . . . . . . . . . . . . . . . . . . . . . Hauler 8 | . 2 . 2 . . . 1 1 . . . . . . . . . . 1 . . . . . . . . . . . . . 1 Recycler 6 | 1 . . . . . . . 1 . . . . . . . . . . . . . . . . 2 . . . . . . . 2 Carrier 2 | . . . . . . . . . . . . . . . . . . . . . . . . . . . . . . . . . 2 Minesweeper 3 | . . . . . . . . . . . . . 1 . . . . 1 . 1 . . . . . . . . . . . . . Mechanic 4 | . . . 1 . . . . . . 1 . . . . . . . . . . . . . . . . . . . . . . 2 Operator 13 | . . . 1 . . . . . . . . . . . . . . . 1 . . . . . . . 9 . . . . 1 1 Watcher 25 | . 2 . 3 . . . 4 1 . . . . . 1 . . . . 4 . . . . . . 1 . 2 3 . . 1 3 Swarmer 64 | . 3 . . 4 . . 6 . 7 2 . . . . . . . 4 . . 5 . 9 . 1 1 . . 8 . . . 14 Saboteur 6 | . . . . . . . . . . . . . . . . . . . . . . . . . . . . . 1 . . . 5 Grunt 122 | . 9 . 4 . . 9 18 . . 14 . . 7 . 2 1 . 10 1 5 . . . 3 3 . . 11 3 . . . 22 Brawler 12 | . . . . . . . . . . 3 . . . . . . . 3 . . . . . . . . . . 1 . . . 5 Duelist 12 | . . . 1 . . . . . . 1 . . 2 . 1 . . . . . . . . 1 . . . 1 3 . . . 2 Protector 6 | . . . . . . . . . . . . . . . . . . 1 . . . . . . 1 . . . . . . . 4 Sentry 35 | . . . 5 . . . 6 . . 2 . . 1 . . 1 . 1 1 . . . 1 . 6 . 1 5 4 . . 1 . Hunter 28 | . . . . . . . 1 . . . . . 1 1 . . . . 2 . 2 . . . 2 1 . 6 8 . . . 4 Programmer 50 | . . . . . . . . 1 . 1 . . 1 . . . . 2 1 . 1 . . 2 1 1 . 6 14 . . 3 16 Heavy 4 | . . . . . . . . . . . . . . . . . . . . . . . . . . . . . 4 . . . . Cetus Guard 2 | . . . . . . . . . . . . . . . . . . . . . . . . . . 2 . . . . . . . Enhanced Grunt 1 | . . . . . . . . . . . . . . . . . . . . . . . . . . . . 1 . . . . . Investigator 1 | . . . . . . . . . . . . . . . . . . . . . . . . . . . . . . . . . 1 Striker 5 | . . . . . . . . . . . . . . . . . . . . . . . . . . . . . . . . . 5 Executioner 4 | . . . . . . . . . . . . . . . . . . . . . . . . . . . . . . . . . 4 Z-Light 9 | . . . . . . . . . . . . 9 . . . . . . . . . . . . . . . . . . . . . Decomposer 9 | . . . . . . . . . 3 . . . . . 5 1 . . . . . . . . . . . . . . . . . Packrat 4 | . . . . . . . . . . . . . . . 3 1 . . . . . . . . . . . . . . . . . Samaritan 1 | . . . . . . . . . . . . . . . . . . 1 . . . . . . . . . . . . . . . Assembler 2 | . . . . . . . . . . . . 2 . . . . . . . . . . . . . . . . . . . . . Assembled 36 | . . . . . . . . . . . . 36 . . . . . . . . . . . . . . . . . . . . . Golem 11 | . . . . . . . . . . . . 10 . . . . . . . . . . . . . . . . . . . . 1 Best Kill Streak 36 | 3 3 1 4 4 . 4 7 1 4 7 . 36 3 1 2 1 . 5 3 4 5 . 5 3 3 3 7 7 11 . . 3 31 Combat Bots Only 34 | . 3 . 2 4 . 3 7 1 4 7 . 34 3 1 2 1 . 5 2 4 5 . 5 3 3 2 1 6 7 . . 3 20 Max Kills in Single Turn 8 | 1 1 1 1 4 . 2 2 1 3 3 . 8 1 1 1 1 . 2 1 1 1 . 2 1 1 1 1 2 2 . . 1 5 Gunslinging . | . . . . . . . . . . . . . . . . . . . . . . . . . . . . . . . . . . Exploded 8 | . . . . 4 . . 2 . 3 3 . 8 . . . . . . . . . . 2 . . . . . . . . . 5 Melee . | . . . . . . . . . . . . . . . . . . . . . . . . . . . . . . . . . . Uniques/NPCs Destroyed 2 | . . . . . . . . . . . . 1 . . . . . . . . . . . . . 1 . . . . . . . Z-Imprinter (-7/Deep Caves) Revision 17 (-4/Cetus) Combat | -11 -10 -10 -9 -9 -9 -8 -8 -7 -7 -7 -7 -7 -6 -6 -6 -6 -6 -5 -5 -5 -5 -5 -4 -4 -4 -4 -4 -4 -3 -3 -3 -2 -1 -------- Run | Scr Mat Min Mat Min Exi Min Mat Fac Low Low Zio Dee Pro Fac Low Low Dat Pro Fac Upp Upp Zhi Pro Fac Ext Cet Arc Hub Res Arm Lab Res Acc Damage Taken 27800 | . 772 . 729 73 . 1277 2222 44 101 608 . 3415 1134 75 272 . . 636 303 227 285 . 363 471 782 265 41 2369 3558 . . 78 7700 Core 2791 | . 124 . 37 . . 125 373 . . 106 . 243 131 17 48 . . 69 16 . 52 . 28 62 42 19 24 134 193 . . . 948 Absorbed by Shields 176 | . . . . . . . . . . . . . . . . . . . . . . . . . 60 44 . . . . . . 72 Redirected to Shielding 377 | . . . . . . . . . . . . 377 . . . . . . . . . . . . . . . . . . . . . Regen/Repaired (Parts) 786 | . 227 . . . . . 495 . . . . . . . . . . . . . . . . . . . . . . . . . 64 Core Remaining (%) 68 | 100 . 50 . . . 59 32 . . . . . 31 . . . . 84 . . . . 90 . . . . 75 . . 79 100 57 Volleys Fired 1180 | 18 65 1 71 2 . 34 152 13 22 38 . 120 36 8 17 6 . 46 24 11 11 8 18 24 52 19 20 95 100 . 2 9 138 Largest 3 | 2 2 2 2 2 . 2 2 2 2 2 . 2 2 2 2 2 . 2 2 2 2 2 2 2 2 2 2 2 3 . 1 3 3 Hottest 138 | 40 40 40 40 40 . 62 98 71 128 128 . 138 50 50 50 50 . 50 50 50 50 50 50 50 50 50 50 50 75 . 25 75 120 Shots Fired 2269 | 36 130 2 142 3 . 68 275 26 23 59 . 178 72 10 34 11 . 92 47 22 22 16 27 44 97 34 40 168 268 . 4 25 294 Gun 613 | 36 130 2 142 2 . 50 138 13 . 5 . 95 . . . . . . . . . . . . . . . . . . . . . Cannon 1574 | . . . . . . 18 137 13 12 31 . 70 72 10 34 11 . 92 47 22 22 16 22 44 97 34 40 168 268 . 4 25 265 Launcher 82 | . . . . 1 . . . . 11 23 . 13 . . . . . . . . . . 5 . . . . . . . . . 29 Special . | . . . . . . . . . . . . . . . . . . . . . . . . . . . . . . . . . . Kinetic 653 | 36 130 2 142 2 . 68 193 26 2 10 . 42 . . . . . . . . . . . . . . . . . . . . . Thermal 1430 | . . . . . . . 82 . 10 26 . 19 72 10 34 11 . 92 47 22 22 16 22 44 97 34 40 168 268 . 4 25 265 Explosive 82 | . . . . 1 . . . . 11 23 . 13 . . . . . . . . . . 5 . . . . . . . . . 29 Electromagnetic 24 | . . . . . . . . . . . . 24 . . . . . . . . . . . . . . . . . . . . . Phasic 80 | . . . . . . . . . . . . 80 . . . . . . . . . . . . . . . . . . . . . Robot Hit Streak 33 | 5 13 3 14 . . 10 25 8 10 8 . 33 14 5 14 14 . 13 7 5 5 17 18 15 20 13 10 21 18 . . 10 17 Robot Miss Streak 9 | 1 8 . 5 2 . 5 5 2 2 2 . 9 4 . 1 1 . 2 2 3 1 . 2 2 2 1 1 2 3 . . 2 7 Penetration Max . | . . . . . . . . . . . . . . . . . . . . . . . . . . . . . . . . . . Secondary Targets 1 | . . . 1 . . . . . . . . . . . . . . . . . . . . . . . . . . . . . . Max Gunslinging Chain 1 | . . . 1 . . . . . . . . . . . . . . . . . . . . . . . . . . . . . . Shots Hit Robots 1418 | 23 73 1 94 . . 49 165 17 8 43 . 119 51 4 24 6 . 61 30 12 12 13 13 28 56 24 30 128 160 . . 13 161 Core Hits 894 | 8 25 1 32 4 . 24 65 6 15 51 . 172 19 2 12 2 . 28 11 6 9 6 12 10 26 11 16 57 76 . . 8 180 Critical Kills 3 | . . . 1 . . . 1 . . 1 . . . . . . . . . . . . . . . . . . . . . . . Critical Parts Destroyed 1 | . . . 1 . . . . . . . . . . . . . . . . . . . . . . . . . . . . . . Critical Strikes 16 | . . . 2 . . 1 2 1 . 1 . 9 . . . . . . . . . . . . . . . . . . . . . Meltdown 2 | . . . . . . . 1 . . 1 . . . . . . . . . . . . . . . . . . . . . . . Destroy 2 | . . . 2 . . . . . . . . . . . . . . . . . . . . . . . . . . . . . . Blast 4 | . . . . . . 1 1 1 . . . 1 . . . . . . . . . . . . . . . . . . . . . Corrupt 2 | . . . . . . . . . . . . 2 . . . . . . . . . . . . . . . . . . . . . Intensify 6 | . . . . . . . . . . . . 6 . . . . . . . . . . . . . . . . . . . . . Melee Attacks 17 | . . . . . . . 1 . 8 . 8 . . . . . . . . . . . . . . . . . . . . . . Impact 17 | . . . . . . . 1 . 8 . 8 . . . . . . . . . . . . . . . . . . . . . . Slashing . | . . . . . . . . . . . . . . . . . . . . . . . . . . . . . . . . . . Piercing . | . . . . . . . . . . . . . . . . . . . . . . . . . . . . . . . . . . Sneak Attacks . | . . . . . . . . . . . . . . . . . . . . . . . . . . . . . . . . . . Combat Hostiles . | . . . . . . . . . . . . . . . . . . . . . . . . . . . . . . . . . . Follow-up Attacks . | . . . . . . . . . . . . . . . . . . . . . . . . . . . . . . . . . . Damage Inflicted 73095 | 256 904 10 1188 144 . 829 3492 496 802 3248 . 6477 2320 180 1084 271 . 2489 1358 577 604 915 982 1580 3009 1165 1088 6024 8582 . . 655 22366 Guns 6113 | 256 904 10 1188 . . 532 1335 124 . 52 . 1712 . . . . . . . . . . . . . . . . . . . . . Cannons 45328 | . . . . . . 297 1871 306 181 687 . 1343 2320 179 1084 271 . 2489 1358 577 604 915 602 1580 3009 1165 1088 6024 8464 . . 655 8259 Explosions 21647 | . . . . 144 . . 286 66 621 2509 . 3422 . . . . . . . . . . 380 . . . . . 118 . . . 14101 Melee . | . . . . . . . . . . . . . . . . . . . . . . . . . . . . . . . . . . Ramming 7 | . . . . . . . . . . . . . . 1 . . . . . . . . . . . . . . . . . . 6 Kinetic 6744 | 256 904 10 1188 . . 829 2192 430 . 193 . 742 . . . . . . . . . . . . . . . . . . . . . Thermal 42556 | . . . . . . . 1014 . 181 546 . 172 2320 179 1084 271 . 2489 1358 577 604 915 602 1580 3009 1165 1088 6024 8464 . . 655 8259 Explosive 21647 | . . . . 144 . . 286 66 621 2509 . 3422 . . . . . . . . . . 380 . . . . . 118 . . . 14101 Electromagnetic 557 | . . . . . . . . . . . . 557 . . . . . . . . . . . . . . . . . . . . . Impact . | . . . . . . . . . . . . . . . . . . . . . . . . . . . . . . . . . . Slashing . | . . . . . . . . . . . . . . . . . . . . . . . . . . . . . . . . . . Piercing . | . . . . . . . . . . . . . . . . . . . . . . . . . . . . . . . . . . Phasic 1584 | . . . . . . . . . . . . 1584 . . . . . . . . . . . . . . . . . . . . . Highest Corruption 23 | . . . . . . 5 . . . 1 1 . . . . . . . 1 . . . . . 1 1 . 6 4 4 4 1 23 Average Corruption 2 | . . . . . . 5 . . . 1 1 . . . . . . . 1 . . . . . 1 1 . 2 3 4 4 1 13 Corruption Purged 9 | . . . . . . . . . . . . . . . . . . . 1 . . . . . 1 1 . . 6 . . . . Corruption Blocked . | . . . . . . . . . . . . . . . . . . . . . . . . . . . . . . . . . . Effects 75 | . . . . . . . . . . 16 2 . . . . . . . . . . . . . 1 1 . . 23 5 8 2 17 Message Errors 22 | . . . . . . . . . . 7 1 . . . . . . . . . . . . . . . . . 6 2 2 . 4 Matter Fused 20 | . . . . . . . . . . 2 . . . . . . . . . . . . . . 1 . . . 11 . 2 . 4 Heat Flow Errors 3 | . . . . . . . . . . . . . . . . . . . . . . . . . . . . . 1 1 1 . . Energy Discharges 6 | . . . . . . . . . . 3 . . . . . . . . . . . . . . . . . . 2 . 1 . . Parts Rejected 2 | . . . . . . . . . . . . . . . . . . . . . . . . . . . . . 1 . . . 1 Data Loss (minor) 10 | . . . . . . . . . . 3 1 . . . . . . . . . . . . . . 1 . . 1 1 . 1 2 Data Loss (major) 2 | . . . . . . . . . . . . . . . . . . . . . . . . . . . . . . . . 1 1 Misfires 3 | . . . . . . . . . . 1 . . . . . . . . . . . . . . . . . . . . 2 . . Alerts 2 | . . . . . . . . . . . . . . . . . . . . . . . . . . . . . 1 1 . . . Misdirections 5 | . . . . . . . . . . . . . . . . . . . . . . . . . . . . . . . . . 5 Overload Shots . | . . . . . . . . . . . . . . . . . . . . . . . . . . . . . . . . . . Overflow Damage 2539 | . . . . . . . 9 27 . 42 . 282 85 . 100 57 . 133 131 17 . 144 13 79 61 29 50 143 364 . . 12 761 Projectiles 1772 | . . . . . . . 9 27 . 13 . 31 85 . 100 57 . 133 131 17 . 144 13 79 61 29 50 143 364 . . 12 274 Explosions 767 | . . . . . . . . . . 29 . 251 . . . . . . . . . . . . . . . . . . . . 487 Melee . | . . . . . . . . . . . . . . . . . . . . . . . . . . . . . . . . . . Knockbacks 26 | . . . . . . 5 13 3 . 1 . 4 . . . . . . . . . . . . . . . . . . . . . Impact . | . . . . . . . . . . . . . . . . . . . . . . . . . . . . . . . . . . Kinetic 26 | . . . . . . 5 13 3 . 1 . 4 . . . . . . . . . . . . . . . . . . . . . Secondary . | . . . . . . . . . . . . . . . . . . . . . . . . . . . . . . . . . . Self-Inflicted Damage 567 | . . . . 31 . . 112 . 49 133 . 142 . . . . . . . . . . 16 . . . . 84 . . . . . Shots 12 | . . . . 1 . . 1 . 1 3 . 4 . . . . . . . . . . 1 . . . . 1 . . . . . Rammed . | . . . . . . . . . . . . . . . . . . . . . . . . . . . . . . . . . . Targets Rammed 2 | . . . . . . . . . . . . . . 1 . . . . . . . . . . . . . . . . . . 1 Kicked 2 | . . . . . . . . . . . . . . 1 . . . . . . . . . . . . . . . . . . 1 Crushed . | . . . . . . . . . . . . . . . . . . . . . . . . . . . . . . . . . . Highest Temperature 360 | . 9 . 20 . . 241 77 . 144 351 . 360 17 . 16 42 . 291 4 13 . . . 9 7 . . 16 151 211 170 . 27 Average Temperature 66 | . 3 . 5 . . 107 29 . 46 97 . 77 6 . 9 16 . 77 4 6 . . . 9 4 . . 10 89 135 86 . 12 Received Heat Transfer 5324 | . 300 . 252 . . 738 999 . 36 198 . 671 480 30 171 . . 186 45 93 . . . 115 99 24 . 262 87 . . . 538 Effects 1 | . . . . . . 1 . . . . . . . . . . . . . . . . . . . . . . . . . . . Interference 1 | . . . . . . 1 . . . . . . . . . . . . . . . . . . . . . . . . . . . Siege Activations . | . . . . . . . . . . . . . . . . . . . . . . . . . . . . . . . . . . Robots Corrupted 5 | . . . . . . . . . . . . 5 . . . . . . . . . . . . . . . . . . . . . Combat Hostiles 5 | . . . . . . . . . . . . 5 . . . . . . . . . . . . . . . . . . . . . Parts Fried 1 | . . . . . . . . . . . . 1 . . . . . . . . . . . . . . . . . . . . . Impact Corruptions . | . . . . . . . . . . . . . . . . . . . . . . . . . . . . . . . . . . Robots Melted 2 | . . . . . . . 1 . . 1 . . . . . . . . . . . . . . . . . . . . . . . Combat Hostiles 2 | . . . . . . . 1 . . 1 . . . . . . . . . . . . . . . . . . . . . . . Parts Melted 28 | . . . . . . . 2 . . . . . 1 . . . . 2 2 . 1 . . . 1 2 2 4 4 . . . 7 Heat Transferred 24279 | . . . . . . . 1480 . 350 1050 . 247 1275 100 625 150 . 1438 750 300 325 312 250 725 1422 625 650 3225 4400 . . 325 4255 Parts Sabotaged 2 | . . . . . . . . . . . . . . . . . . . . . . . . . . . . . . . . . 2 Parts Stolen . | . . . . . . . . . . . . . . . . . . . . . . . . . . . . . . . . . . Parts Stripped . | . . . . . . . . . . . . . . . . . . . . . . . . . . . . . . . . . . Power Chain Reactions . | . . . . . . . . . . . . . . . . . . . . . . . . . . . . . . . . . . Missiles Intercepted . | . . . . . . . . . . . . . . . . . . . . . . . . . . . . . . . . . . Alert | -11 -10 -10 -9 -9 -9 -8 -8 -7 -7 -7 -7 -7 -6 -6 -6 -6 -6 -5 -5 -5 -5 -5 -4 -4 -4 -4 -4 -4 -3 -3 -3 -2 -1 ------- Run | Scr Mat Min Mat Min Exi Min Mat Fac Low Low Zio Dee Pro Fac Low Low Dat Pro Fac Upp Upp Zhi Pro Fac Ext Cet Arc Hub Res Arm Lab Res Acc Peak Influence 6030 | 30 195 5 169 144 . 75 373 166 . . . . . 61 . . . . 232 . . . . 181 748 850 669 1488 1554 830 . 732 6030 Initial 815 | . 19 4 . 24 . . . 143 . . . . . 18 . . . . 150 . . . . . . 356 339 163 780 815 . . 439 Average 428 | 13 41 1 76 19 . 7 151 85 . . . . . 24 . . . . 102 . . . . 24 215 649 507 798 936 820 . 431 2502 Maximum Alert Level 5 | . . . . . . . 1 . . . . . . . . . . . 1 . . . . . 3 3 2 4 4 3 . 3 5 Low Security (%) 63 | 100 100 100 100 100 . 100 73 100 . . . . . 100 . . . . 91 . . . . 100 60 . . 5 . . . 22 . Level 1 5 | . . . . . . . 26 . . . . . . . . . . . 8 . . . . . 14 9 2 2 . . . 11 . Level 2 11 | . . . . . . . . . . . . . . . . . . . . . . . . . 21 50 97 29 26 . . 48 7 Level 3 11 | . . . . . . . . . . . . . . . . . . . . . . . . . 3 40 . 55 41 100 . 18 25 Level 4 4 | . . . . . . . . . . . . . . . . . . . . . . . . . . . . 7 32 . . . 7 Level 5 . | . . . . . . . . . . . . . . . . . . . . . . . . . . . . . . . . . 12 High Security 3 | . . . . . . . . . . . . . . . . . . . . . . . . . . . . . . . . . 46 Max Security . | . . . . . . . . . . . . . . . . . . . . . . . . . . . . . . . . . . Sterilizations 1 | . . . . . . . . . . . . . . . . . . . . . . . . . . . . . . . . . 1 Squads Dispatched 81 | . 4 . 1 . . . 4 1 . 1 . . . . . . . 1 3 . . . . 2 1 . . 12 15 1 . 3 32 Investigation 11 | . 3 . . . . . 3 . . . . . . . . . . . 1 . . . . . . . . 2 1 . . . 1 Extermination 14 | . . . . . . . . 1 . . . . . . . . . . 1 . . . . 2 . . . 3 5 . . 1 1 Reinforcement 19 | . 1 . 1 . . . 1 . . . . . . . . . . . 1 . . . . . . . . 4 6 1 . 2 2 Assault 34 | . . . . . . . . . . 1 . . . . . . . 1 . . . . . . 1 . . 3 2 . . . 26 Garrison 3 | . . . . . . . . . . . . . . . . . . . . . . . . . . . . . 1 . . . 2 Intercept . | . . . . . . . . . . . . . . . . . . . . . . . . . . . . . . . . . . Searches Triggered . | . . . . . . . . . . . . . . . . . . . . . . . . . . . . . . . . . . Data Miner Redirects 8 | . . . . . . . . . . . . . . . . . . . . . . . . . 1 . . 3 1 . . . 3 Construction Impeded 2 | . . . . . . . . . . . . . . . . . . . . . . . . . . . . 1 1 . . . . Haulers Reinforced 1 | . . . . . . . . . . . . . . . . . . . . . . . . . . . . . 1 . . . . Active Scanning Responses . | . . . . . . . . . . . . . . . . . . . . . . . . . . . . . . . . . . Cargo Convoy Interrupts 1 | . . . . . . . . . . . . . . . . . . . . . . . . . . . . . 1 . . . . Stealth | -11 -10 -10 -9 -9 -9 -8 -8 -7 -7 -7 -7 -7 -6 -6 -6 -6 -6 -5 -5 -5 -5 -5 -4 -4 -4 -4 -4 -4 -3 -3 -3 -2 -1 --------- Run | Scr Mat Min Mat Min Exi Min Mat Fac Low Low Zio Dee Pro Fac Low Low Dat Pro Fac Upp Upp Zhi Pro Fac Ext Cet Arc Hub Res Arm Lab Res Acc Distress Signals 22 | . 1 . 1 . . . 6 . . . . . . . . . . . . . . . . 1 4 2 . 2 . . . 1 4 Communications Jammed 156 | . . . . . . . . . . . . . . . . . . . . . . . . . . . . . . . . . 156 Distress Signals 156 | . . . . . . . . . . . . . . . . . . . . . . . . . . . . . . . . . 156 Times Spotted 641 | . 17 . 20 4 . 11 44 3 7 21 . 69 14 2 4 2 . 26 12 5 6 . 9 6 31 16 11 50 47 . . 17 187 Peak Tracking Total 37 | . 4 . 4 4 . 3 6 1 4 7 . 37 4 2 3 1 . 5 4 4 4 . 5 4 8 5 1 6 6 1 . 4 19 Tactical Retreats 26 | . . . . . . . 2 . . . . 6 . . . . . 2 2 . . . . . 2 . . 1 . . . 1 10 Traps | -11 -10 -10 -9 -9 -9 -8 -8 -7 -7 -7 -7 -7 -6 -6 -6 -6 -6 -5 -5 -5 -5 -5 -4 -4 -4 -4 -4 -4 -3 -3 -3 -2 -1 ------- Run | Scr Mat Min Mat Min Exi Min Mat Fac Low Low Zio Dee Pro Fac Low Low Dat Pro Fac Upp Upp Zhi Pro Fac Ext Cet Arc Hub Res Arm Lab Res Acc Traps Triggered 11 | . 1 . . . . . 1 . . . . . . . . . . . 1 . . . . . 1 . . . 3 . . 1 3 Indirectly . | . . . . . . . . . . . . . . . . . . . . . . . . . . . . . . . . . . Trap Hack Attempts . | . . . . . . . . . . . . . . . . . . . . . . . . . . . . . . . . . . Triggered . | . . . . . . . . . . . . . . . . . . . . . . . . . . . . . . . . . . Disarmed . | . . . . . . . . . . . . . . . . . . . . . . . . . . . . . . . . . . Reprogrammed . | . . . . . . . . . . . . . . . . . . . . . . . . . . . . . . . . . . Reused . | . . . . . . . . . . . . . . . . . . . . . . . . . . . . . . . . . . Traps Extracted . | . . . . . . . . . . . . . . . . . . . . . . . . . . . . . . . . . . Installed . | . . . . . . . . . . . . . . . . . . . . . . . . . . . . . . . . . . Triggered 6 | . . . . 1 . . . . . . . . . . . 1 . 3 . . . . . . . . . . 1 . . . . Machines | -11 -10 -10 -9 -9 -9 -8 -8 -7 -7 -7 -7 -7 -6 -6 -6 -6 -6 -5 -5 -5 -5 -5 -4 -4 -4 -4 -4 -4 -3 -3 -3 -2 -1 ---------- Run | Scr Mat Min Mat Min Exi Min Mat Fac Low Low Zio Dee Pro Fac Low Low Dat Pro Fac Upp Upp Zhi Pro Fac Ext Cet Arc Hub Res Arm Lab Res Acc Machines Disabled 57 | . 1 . . . . . 4 3 1 1 . 3 . 1 . . . . . . . 1 . 1 3 2 4 18 3 . 1 2 8 Max in Single Turn 11 | . 1 . . . . . 2 2 1 1 . 1 . 1 . . . . . . . 1 . 1 1 1 1 11 1 . 1 . 1 Garrison Access 3 | . . . . . . . . . . . . . . . . . . . . . . . . . . . . . 1 . . . 2 Network Hub 1 | . . . . . . . . . . . . . . . . . . . . . . . . . . . . 1 . . . . . Machines Sabotaged . | . . . . . . . . . . . . . . . . . . . . . . . . . . . . . . . . . . Garrisons Compromised 1 | . . . . . . . . . . . . . . . . . . . . . . . . . . . . . 1 . . . . Overloaded Fab Kills . | . . . . . . . . . . . . . . . . . . . . . . . . . . . . . . . . . . Hacking | -11 -10 -10 -9 -9 -9 -8 -8 -7 -7 -7 -7 -7 -6 -6 -6 -6 -6 -5 -5 -5 -5 -5 -4 -4 -4 -4 -4 -4 -3 -3 -3 -2 -1 --------- Run | Scr Mat Min Mat Min Exi Min Mat Fac Low Low Zio Dee Pro Fac Low Low Dat Pro Fac Upp Upp Zhi Pro Fac Ext Cet Arc Hub Res Arm Lab Res Acc Machines Accessed 89 | . 7 . 6 2 2 . 13 7 2 1 1 . . 3 1 . 4 . 4 1 1 4 . 1 2 1 . 6 6 . 1 3 10 Terminals 47 | . 5 . 5 1 . . 6 4 . . . . . 2 . . . . 4 1 1 . . 1 2 1 . 6 2 . . 2 4 Fabricators 5 | . . . . . . . . 1 . . . . . . . . . . . . . . . . . . . . 1 . . . 3 Repair Stations 3 | . 1 . . . . . 2 . . . . . . . . . . . . . . . . . . . . . . . . . . Recycling Units 7 | . 1 . . . . . 2 2 . . . . . . . . . . . . . . . . . . . . 1 . . . 1 Scanalyzers 5 | . . . 1 . . . 2 . . . . . . . . . . . . . . . . . . . . . . . . 1 1 Garrison Access 5 | . . . . . . . 1 . . . . . . 1 . . . . . . . . . . . . . . 2 . . . 1 Total Hacks 281 | . 23 . 21 3 2 . 55 22 7 1 5 . . 7 1 . 30 . 10 1 1 17 . 1 6 1 . 19 18 . 1 10 19 Successful 177 | . 12 . 17 2 2 . 33 15 7 1 5 . . 2 1 . 30 . 2 1 1 17 . . 2 . . 9 9 . 1 5 3 Failed 103 | . 11 . 4 . . . 22 7 . . . . . 5 . . . . 8 . . . . 1 4 1 . 10 9 . . 5 16 Catastrophic 22 | . 1 . 1 . . . 4 1 . . . . . . . . . . . . . . . 1 . . . 2 . . . 2 10 Database Lockouts 1 | . . . . 1 . . . . . . . . . . . . . . . . . . . . . . . . . . . . . Manual 99 | . 13 . 11 2 1 . 17 7 . . . . . 7 . . . . 8 . . . . 1 4 1 . 8 10 . . 1 8 Terminals 126 | . 14 . 16 2 . . 20 12 . . . . . 4 . . . . 10 1 1 . . 1 6 1 . 19 9 . . 4 6 Fabricators 13 | . . . . . . . . 2 . . . . . . . . . . . . . . . . . . . . 3 . . . 8 Repair Stations 16 | . 4 . . . . . 12 . . . . . . . . . . . . . . . . . . . . . . . . . . Recycling Units 25 | . 5 . . . . . 7 8 . . . . . . . . . . . . . . . . . . . . 4 . . . 1 Scanalyzers 27 | . . . 5 . . . 13 . . . . . . . . . . . . . . . . . . . . . . . . 6 3 Garrison Access 9 | . . . . . . . 3 . . . . . . 3 . . . . . . . . . . . . . . 2 . . . 1 Terminal Hacks 100 | . 2 . 8 2 2 . 6 6 7 1 5 . . 1 1 . 30 . 1 1 1 17 . . . . . 6 1 . 1 1 . Record 27 | . . . . . 1 . . 1 6 . . . . . . . 11 . . 1 1 5 . . . . . . . . 1 . . Part Schematic 20 | . . . . . . . . . . . 5 . . . . . 11 . . . . 4 . . . . . . . . . . . Robot Schematic 5 | . . . . . . . . . . . . . . . . . 5 . . . . . . . . . . . . . . . . Robot Analysis 10 | . . . 3 1 . . 1 1 . . . . . . . . . . . . . 4 . . . . . . . . . . . Prototype ID Bank 10 | . . . . . . . 1 2 . . . . . . . . 3 . . . . 4 . . . . . . . . . . . Open Door 4 | . . . . 1 . . . . 1 1 . . . . 1 . . . . . . . . . . . . . . . . . . Level Access Points 1 | . . . . . . . . . . . . . . . . . . . . . . . . . . . . 1 . . . . . Branch Access Points 6 | . . . 1 . . . . 1 . . . . . 1 . . . . 1 . . . . . . . . . 1 . . 1 . Terminal Index 1 | . . . . . . . 1 . . . . . . . . . . . . . . . . . . . . . . . . . . Recycling Unit Index 1 | . . . . . . . 1 . . . . . . . . . . . . . . . . . . . . . . . . . . Unreport Threat 1 | . . . . . . . 1 . . . . . . . . . . . . . . . . . . . . . . . . . . Locate Traps 3 | . 1 . 1 . . . . . . . . . . . . . . . . . . . . . . . . 1 . . . . . Security Status 1 | . . . 1 . . . . . . . . . . . . . . . . . . . . . . . . . . . . . . Recall Investigation 1 | . . . . . . . . . . . . . . . . . . . . . . . . . . . . 1 . . . . . Recall Reinforcements 1 | . . . . . . . . . . . . . . . . . . . . . . . . . . . . 1 . . . . . Hauler Manifests 2 | . 1 . . . . . 1 . . . . . . . . . . . . . . . . . . . . . . . . . . Registered Components 1 | . . . 1 . . . . . . . . . . . . . . . . . . . . . . . . . . . . . . Registered Prototypes 1 | . . . 1 . . . . . . . . . . . . . . . . . . . . . . . . . . . . . . Zone Layout 3 | . . . . . . . . 1 . . . . . . . . . . . . . . . . . . . 2 . . . . . EX-Prototype ID Bank 1 | . . . . . 1 . . . . . . . . . . . . . . . . . . . . . . . . . . . . Fabricator Hacks 4 | . . . . . . . . 2 . . . . . . . . . . . . . . . . . . . . 1 . . . 1 Network Status 2 | . . . . . . . . . . . . . . . . . . . . . . . . . . . . . 1 . . . 1 Load Schematic 1 | . . . . . . . . 1 . . . . . . . . . . . . . . . . . . . . . . . . . Build 1 | . . . . . . . . 1 . . . . . . . . . . . . . . . . . . . . . . . . . Repair Station Hacks 14 | . 4 . . . . . 10 . . . . . . . . . . . . . . . . . . . . . . . . . . Scan Component 7 | . 2 . . . . . 5 . . . . . . . . . . . . . . . . . . . . . . . . . . Repair 7 | . 2 . . . . . 5 . . . . . . . . . . . . . . . . . . . . . . . . . . Recycling Unit Hacks 6 | . 1 . . . . . 2 3 . . . . . . . . . . . . . . . . . . . . . . . . . Retrieve Matter 2 | . . . . . . . 1 1 . . . . . . . . . . . . . . . . . . . . . . . . . Retrieve Components 4 | . 1 . . . . . 1 2 . . . . . . . . . . . . . . . . . . . . . . . . . Scanalyzer 19 | . . . 5 . . . 8 . . . . . . . . . . . . . . . . . . . . . . . . 4 2 Insert Component 14 | . . . 3 . . . 5 . . . . . . . . . . . . . . . . . . . . . . . . 4 2 Analyze 5 | . . . 2 . . . 3 . . . . . . . . . . . . . . . . . . . . . . . . . . Garrison Access Hacks 1 | . . . . . . . . . . . . . . . . . . . . . . . . . . . . . 1 . . . . Seal Access 1 | . . . . . . . . . . . . . . . . . . . . . . . . . . . . . 1 . . . . Unauthorized Hacks 33 | . 5 . 4 . . . 7 4 . . . . . 1 . . . . 1 . . . . . 2 . . 3 6 . . . . Terminals 18 | . 4 . 4 . . . 2 . . . . . . . . . . . 1 . . . . . 2 . . 3 2 . . . . Botnet 15 | . 3 . 3 . . . 2 . . . . . . . . . . . 1 . . . . . 2 . . 2 2 . . . . Operators 3 | . 1 . 1 . . . . . . . . . . . . . . . . . . . . . . . . 1 . . . . . Fabricators 1 | . . . . . . . . . . . . . . . . . . . . . . . . . . . . . 1 . . . . Haulers 1 | . . . . . . . . . . . . . . . . . . . . . . . . . . . . . 1 . . . . Repair Stations . | . . . . . . . . . . . . . . . . . . . . . . . . . . . . . . . . . . Recycling Units 11 | . 1 . . . . . 4 4 . . . . . . . . . . . . . . . . . . . . 2 . . . . Reject 2 | . . . . . . . 1 1 . . . . . . . . . . . . . . . . . . . . . . . . . Recyclers 3 | . . . . . . . 1 1 . . . . . . . . . . . . . . . . . . . . 1 . . . . Mask 6 | . 1 . . . . . 2 2 . . . . . . . . . . . . . . . . . . . . 1 . . . . Scanalyzers . | . . . . . . . . . . . . . . . . . . . . . . . . . . . . . . . . . . Garrison Access 3 | . . . . . . . 1 . . . . . . 1 . . . . . . . . . . . . . . 1 . . . . Watchers 3 | . . . . . . . 1 . . . . . . 1 . . . . . . . . . . . . . . 1 . . . . Data Cores Recovered 1 | . . . . . . . . . . . . . . . . . . . 1 . . . . . . . . . . . . . . Used . | . . . . . . . . . . . . . . . . . . . . . . . . . . . . . . . . . . Hacking Detections 67 | . 7 . 6 1 . . 12 6 . . . . . 3 . . . . 4 . . . . 1 2 1 . 6 5 . . 3 10 Full Trace Events 8 | . 2 . . . . . 3 . . . . . . . . . . . 1 . . . . . . . . 1 . . . . 1 Feedback Events 1 | . . . . . . . . . . . . . . . . . . . 1 . . . . . . . . . . . . . . Corruption 1 | . . . . . . . . . . . . . . . . . . . 1 . . . . . . . . . . . . . . Feedback Blocked . | . . . . . . . . . . . . . . . . . . . . . . . . . . . . . . . . . . Robot Schematics Acquired 5 | . . . . . . . . . . . . . . . . . 5 . . . . . . . . . . . . . . . . Robots Built . | . . . . . . . . . . . . . . . . . . . . . . . . . . . . . . . . . . Authchips . | . . . . . . . . . . . . . . . . . . . . . . . . . . . . . . . . . . Time . | . . . . . . . . . . . . . . . . . . . . . . . . . . . . . . . . . . Total Robot Build Rating . | . . . . . . . . . . . . . . . . . . . . . . . . . . . . . . . . . . Part Schematics Acquired 25 | . . . 2 . . . 3 . . . 5 . . . . . 11 . . . . 4 . . . . . . . . . . . Parts Built 1 | . . . . . . . . 1 . . . . . . . . . . . . . . . . . . . . . . . . . Authchips 1 | . . . . . . . . 1 . . . . . . . . . . . . . . . . . . . . . . . . . Time 102 | . . . . . . . . 102 . . . . . . . . . . . . . . . . . . . . . . . . . Total Part Build Rating 8 | . . . . . . . . 8 . . . . . . . . . . . . . . . . . . . . . . . . . Parts Repaired 7 | . 2 . . . . . 5 . . . . . . . . . . . . . . . . . . . . . . . . . . Time 200 | . 52 . . . . . 148 . . . . . . . . . . . . . . . . . . . . . . . . . . Parts Recycled . | . . . . . . . . . . . . . . . . . . . . . . . . . . . . . . . . . . Recycled Matter . | . . . . . . . . . . . . . . . . . . . . . . . . . . . . . . . . . . Retrieved Matter . | . . . . . . . . . . . . . . . . . . . . . . . . . . . . . . . . . . Retrieved Components 19 | . 9 . . . . . . 10 . . . . . . . . . . . . . . . . . . . . . . . . . Parts Scanalyzed 6 | . . . 2 . . . 4 . . . . . . . . . . . . . . . . . . . . . . . . . . Part Schematics Acquired 5 | . . . 2 . . . 3 . . . . . . . . . . . . . . . . . . . . . . . . . . Parts Damaged . | . . . . . . . . . . . . . . . . . . . . . . . . . . . . . . . . . . Bothacking | -11 -10 -10 -9 -9 -9 -8 -8 -7 -7 -7 -7 -7 -6 -6 -6 -6 -6 -5 -5 -5 -5 -5 -4 -4 -4 -4 -4 -4 -3 -3 -3 -2 -1 ------------ Run | Scr Mat Min Mat Min Exi Min Mat Fac Low Low Zio Dee Pro Fac Low Low Dat Pro Fac Upp Upp Zhi Pro Fac Ext Cet Arc Hub Res Arm Lab Res Acc Used RIF Installer . | . . . . . . . . . . . . . . . . . . . . . . . . . . . . . . . . . . Robots Hacked . | . . . . . . . . . . . . . . . . . . . . . . . . . . . . . . . . . . Non-combat . | . . . . . . . . . . . . . . . . . . . . . . . . . . . . . . . . . . Combat . | . . . . . . . . . . . . . . . . . . . . . . . . . . . . . . . . . . Robot Hacks Applied . | . . . . . . . . . . . . . . . . . . . . . . . . . . . . . . . . . . Relay Couplers Released 7 | . . . . . . . . . . . . . . . . . . . . . . . . . . . . . . . . . 7 Machine Destruction 3 | . . . . . . . . . . . . . . . . . . . . . . . . . . . . . . . . . 3 Programmers 4 | . . . . . . . . . . . . . . . . . . . . . . . . . . . . . . . . . 4 Fabnet Peak Effective % . | . . . . . . . . . . . . . . . . . . . . . . . . . . . . . . . . . . Robots Rewired 16 | . . . . . . . . . . 1 . . . . . . . 1 . . . . . . 11 . . . . 3 . . . Allies Hacked . | . . . . . . . . . . . . . . . . . . . . . . . . . . . . . . . . . . Hacks Repelled . | . . . . . . . . . . . . . . . . . . . . . . . . . . . . . . . . . . Allies | -11 -10 -10 -9 -9 -9 -8 -8 -7 -7 -7 -7 -7 -6 -6 -6 -6 -6 -5 -5 -5 -5 -5 -4 -4 -4 -4 -4 -4 -3 -3 -3 -2 -1 -------- Run | Scr Mat Min Mat Min Exi Min Mat Fac Low Low Zio Dee Pro Fac Low Low Dat Pro Fac Upp Upp Zhi Pro Fac Ext Cet Arc Hub Res Arm Lab Res Acc Total Allies 50 | . . . . . . . . . . 1 6 . . . . . . 2 . . . . . . 25 5 . . . 3 5 . 3 Largest Group 18 | . . . . . . . . . . 1 7 7 . . . . . 1 . . . . . . 18 12 4 4 . 3 5 5 5 Highest-Rated Group 1170 | . . . . . . . . . . 32 187 187 . . . . . 96 . . . . . . 882 647 384 384 . 168 1170 1170 1170 Highest-Rated Ally 234 | . . . . . . . . . . 32 32 32 . . . . . 96 . . . . . . 159 159 96 96 . 56 234 234 234 Total Orders 6 | . . . . . . . . . . . . 2 . . . . . . . . . . . . 4 . . . . . . . . STAY 3 | . . . . . . . . . . . . 1 . . . . . . . . . . . . 2 . . . . . . . . FOLLOW 3 | . . . . . . . . . . . . 1 . . . . . . . . . . . . 2 . . . . . . . . Ally Attacks 591 | . . . . . . . . . . 3 . 62 . . . . . 38 . . . . . . 107 112 33 40 . . . 34 162 Total Damage 29835 | . . . . . . . . . . 111 . 1210 . . . . . 1169 . . . . . . 3304 4014 1199 1795 . . . 2775 14258 Kills 136 | . . . . . . . . . . . . 10 . . . . . 7 . . . . . . 15 16 3 9 . . . 14 62 Allies Corrupted 5 | . . . . . . . . . . . . . . . . . . . . . . . . . 3 . . . . . . . 2 Allies Melted . | . . . . . . . . . . . . . . . . . . . . . . . . . . . . . . . . . . Intel | -11 -10 -10 -9 -9 -9 -8 -8 -7 -7 -7 -7 -7 -6 -6 -6 -6 -6 -5 -5 -5 -5 -5 -4 -4 -4 -4 -4 -4 -3 -3 -3 -2 -1 ------- Run | Scr Mat Min Mat Min Exi Min Mat Fac Low Low Zio Dee Pro Fac Low Low Dat Pro Fac Upp Upp Zhi Pro Fac Ext Cet Arc Hub Res Arm Lab Res Acc Robot Analysis Total 10 | . . . 3 1 . . 1 1 . . . . . . . . . . . . . 4 . . . . . . . . . . . Derelict Logs Recovered 16 | . . 1 . 1 . . . . 2 2 1 . 2 . 1 1 . 2 . 1 . . 2 . . . . . . . . . . Drone Launches . | . . . . . . . . . . . . . . . . . . . . . . . . . . . . . . . . . . Drone Recoveries . | . . . . . . . . . . . . . . . . . . . . . . . . . . . . . . . . . . Exploration | -11 -10 -10 -9 -9 -9 -8 -8 -7 -7 -7 -7 -7 -6 -6 -6 -6 -6 -5 -5 -5 -5 -5 -4 -4 -4 -4 -4 -4 -3 -3 -3 -2 -1 ------------- Run | Scr Mat Min Mat Min Exi Min Mat Fac Low Low Zio Dee Pro Fac Low Low Dat Pro Fac Upp Upp Zhi Pro Fac Ext Cet Arc Hub Res Arm Lab Res Acc Turns Passed 49930 | 160 1576 1836 1506 1892 765 1929 3220 1179 1717 1599 1623 3790 2182 757 2206 2119 150 2404 1073 1492 1457 311 1929 528 1242 456 799 1188 2697 150 1369 710 1919 Spaces Moved 19223 | 65 541 261 456 561 245 516 705 531 1001 878 993 1392 968 245 965 1158 84 1059 468 638 762 152 906 203 382 163 106 402 878 70 176 237 1056 Core 202 | 19 . . . . . . . . . . . . . . . . . . . . . . . . . . . . . . . . 183 Treads 3633 | 46 541 261 286 561 215 516 705 25 . . . 476 . . . . . . . . . . . . . . . . . . . . 1 Legs 10914 | . . . . . . . . . . . . 20 968 245 965 1158 84 1059 468 638 762 152 906 203 382 163 106 402 878 70 176 237 872 Wheels 4474 | . . . 170 . 30 . . 506 1001 878 993 896 . . . . . . . . . . . . . . . . . . . . . Hover . | . . . . . . . . . . . . . . . . . . . . . . . . . . . . . . . . . . Flight . | . . . . . . . . . . . . . . . . . . . . . . . . . . . . . . . . . . Fastest Speed 50 | 50 160 240 210 320 210 320 312 160 160 160 145 95 180 180 180 180 180 180 180 180 180 180 180 180 180 210 180 180 176 176 176 180 50 Average Speed 195 | 132 197 240 257 320 306 341 317 202 160 160 157 208 183 180 180 180 180 180 180 183 180 180 183 180 182 210 200 180 180 176 176 181 120 Slowest Speed 560 | 160 240 240 320 320 320 560 320 320 160 160 160 560 210 180 180 180 180 180 180 240 180 180 240 180 210 210 270 210 230 176 222 182 240 Overloaded Moves . | . . . . . . . . . . . . . . . . . . . . . . . . . . . . . . . . . . Propulsion Burnouts . | . . . . . . . . . . . . . . . . . . . . . . . . . . . . . . . . . . Robots Hopped 2 | . . . . . . . . . . 1 . . . . . . . . . . . . . . . . . . . . . . 1 Cave-ins Triggered . | . . . . . . . . . . . . . . . . . . . . . . . . . . . . . . . . . . Teleports 2 | . . . . . . . . . . . . . . . . . . . . . . . . . . . . . . 1 . . 1 Exploration Rate (%) 60 | 4 79 62 45 98 61 78 61 12 97 90 82 88 96 10 96 98 68 88 17 73 74 60 92 5 55 71 78 51 28 10 96 9 41 Regions Visited 33 Branch Regions 23 Pre-discovered Areas 10 | . . 1 . . 1 . . . . 1 2 . . . . . 1 . . . . 3 1 . . . . . . . . . . Known Exits Taken 22 | . . . 1 . . . . 1 1 1 1 . 1 1 1 1 1 1 1 1 1 1 1 1 1 1 . 1 1 . 1 . . Unknown Exits Taken 11 | 1 1 1 . 1 1 1 1 . . . . 1 . . . . . . . . . . . . . . 1 . . 1 . 1 . Scrap Searched 40 | . . 2 . 1 . 1 . . 5 2 4 . 3 . 2 8 . 2 . 3 3 . 4 . . . . . . . . . . Spaces Dug 169 | . . . . 10 . . 28 . 40 11 3 . . 5 . 1 . 4 1 . . . 17 2 17 . . 10 6 . . 1 13 Terrain Destroyed 1333 | . . . . 10 . 1 78 58 145 235 3 27 20 5 9 5 . 34 15 10 9 1 55 12 34 8 10 184 83 . 1 7 274 Melee 12 | . . . . . . . 1 . 8 . 3 . . . . . . . . . . . . . . . . . . . . . . Projectile 410 | . . . . . . 1 46 1 2 4 . 18 20 5 9 5 . 34 15 10 9 1 12 12 34 8 10 27 62 . 1 7 57 AOE 911 | . . . . 10 . . 31 57 135 231 . 9 . . . . . . . . . . 43 . . . . 157 21 . . . 217 Terrain Rammed . | . . . . . . . . . . . . . . . . . . . . . . . . . . . . . . . . . . Walls Destroyed . | . . . . . . . . . . . . . . . . . . . . . . . . . . . . . . . . . . Machines Disabled . | . . . . . . . . . . . . . . . . . . . . . . . . . . . . . . . . . . Actions | -11 -10 -10 -9 -9 -9 -8 -8 -7 -7 -7 -7 -7 -6 -6 -6 -6 -6 -5 -5 -5 -5 -5 -4 -4 -4 -4 -4 -4 -3 -3 -3 -2 -1 --------- Run | Scr Mat Min Mat Min Exi Min Mat Fac Low Low Zio Dee Pro Fac Low Low Dat Pro Fac Upp Upp Zhi Pro Fac Ext Cet Arc Hub Res Arm Lab Res Acc Total 29492 | 106 924 1470 648 657 261 615 1418 613 1077 1012 1041 2111 1299 551 1401 1182 83 1466 651 943 827 175 1144 325 830 243 660 700 1779 97 1242 501 1440 Wait 7984 | 4 271 1206 88 87 3 48 483 40 38 82 18 435 287 291 409 7 . 342 142 287 52 . 216 84 213 43 508 191 743 1 1021 203 141 Move 19186 | 64 540 260 455 560 244 515 704 530 1000 875 992 1391 967 245 964 1157 83 1058 467 637 761 151 905 202 381 162 105 401 877 69 175 236 1053 Hop 2 | . . . . . . . . . . 1 . . . . . . . . . . . . . . . . . . . . . . 1 Pick Up 268 | 13 22 2 14 3 4 6 28 8 2 3 3 57 2 3 2 2 . 5 3 2 1 4 . 4 2 4 8 6 22 . 10 10 13 Fast Attach 77 | 2 3 . . . . . 5 4 . . 5 8 . . . 4 . 1 1 . . 5 . 1 3 4 2 . 3 . 2 5 19 Attach 89 | 5 2 . 4 . . 8 10 1 . 1 1 21 . 1 . 1 . . . . . . . 1 1 . 1 3 5 . 3 5 15 Detach 18 | . . . . . . . 1 1 . . 1 1 . 2 . . . . 2 . . . 1 2 . 1 . . . . . 1 5 Swap 138 | . 7 . 7 2 4 4 13 5 6 6 5 23 2 1 4 . . . 5 1 . . 1 1 2 4 . 1 9 1 3 10 11 Drop 289 | . 14 1 9 3 6 . 21 11 1 3 8 55 5 . 5 5 . 3 2 5 2 7 3 6 . 6 16 3 15 1 26 17 30 Fire 1180 | 18 65 1 71 2 . 34 152 13 22 38 . 120 36 8 17 6 . 46 24 11 11 8 18 24 52 19 20 95 100 . 2 9 138 Melee 17 | . . . . . . . 1 . 8 . 8 . . . . . . . . . . . . . . . . . . . . . . Ram . | . . . . . . . . . . . . . . . . . . . . . . . . . . . . . . . . . . Kick 1 | . . . . . . . . . . . . . . . . . . . . . . . . . . . . . . . . . 1 Crush . | . . . . . . . . . . . . . . . . . . . . . . . . . . . . . . . . . . Escape Stasis 32 | . . . . . . . . . . . . . . . . . . . 5 . . . . . 4 . . . 5 . . 5 13 Rewire 211 | . . . . . . . . . . 3 . . . . . . . 11 . . . . . . 172 . . . . 25 . . . Trap . | . . . . . . . . . . . . . . . . . . . . . . . . . . . . . . . . . . Miscellaneous . | . . . . . . . . . . . . . . . . . . . . . . . . . . . . . . . . . . Route ------- -11/Scrapyard -10/Materials (discovered 4 exits: *Mat x3 / [*Min]) -10/Mines -9/Materials -9/Mines (discovered 4 exits: *Mat x2 / *Exi / *Zio) -9/Exiles -8/Mines (discovered 2 exits: *Mat x2) -8/Materials (discovered 2 exits: *Fac x2) -7/Factory (discovered 3 exits: Sto / *Low x2) -7/Lower Caves -7/Lower Caves (discovered 2 exits: *Fac / *Zio) -7/Zion (discovered 2 exits: *Dee / *Pro) -7/Deep Caves -6/Proximity Caves -6/Factory (discovered 3 exits: Fac / *Low x2) -6/Lower Caves -6/Lower Caves (discovered 2 exits: *Fac / *Dat) -6/Data Miner -5/Proximity Caves -5/Factory (discovered 2 exits: *Upp x2) -5/Upper Caves -5/Upper Caves (discovered 2 exits: *Fac / *Zhi) -5/Zhirov -4/Proximity Caves -4/Factory -4/Extension (discovered 2 exits: *Res / *Cet) -4/Cetus (discovered 2 exits: *Res / *Arc) -4/Archives (discovered 3 exits: *Res / *Hub x2) -4/Hub_04(d) (discovered 4 exits: *Res x4) -3/Research (discovered 5 exits: *Res x2 / *Arm / Tes x2) -3/Armory -3/Lab -2/Research (discovered 3 exits: *Acc / Qua x2) -1/Access To Fleet Rendezvous History --------- Turn | Location | Event 14 | -11/Scrapyard | Discovered new exit (range 15) 161 | -11/Scrapyard | Entered Materials 250 | -10/Materials | Discovered new exit (range 8) 281 | -10/Materials | Discovered new exit (range 15) 314 | -10/Materials | Build established: Mutant 610 | -10/Materials | Discovered new exit (range 3) 1015 | -10/Materials | Discovered new exit (range 15) 1118 | -10/Materials | Repaired Lgt. Treads 1145 | -10/Materials | Repaired Lgt. Treads 1737 | -10/Materials | Entered Mines 1750 | -10/Mines | Assembled infested the area 1755 | -10/Mines | Assisted by a Guerilla fighting off Assembled 3203 | -10/Mines | Found a damaged Exp. Sensor Array with a note attached 3208 | -10/Mines | Found Prototype Device 3293 | -10/Mines | A weapon hastily lodged in a ceiling crevice suddenly fell to the ground 3556 | -10/Mines | Discovered new exit (range 8) 3573 | -10/Mines | Entered Materials 3573 | -9/Materials | Evolved 2 slots: Utility x2 4716 | -9/Materials | Identified exit to Mines 5015 | -9/Materials | Identified Exp. Sensor Array 5079 | -9/Materials | Entered Mines 5104 | -9/Mines | Met a Derelict bent on vengeance 5554 | -9/Mines | Met a Derelict who couldn't figure out how to use a Trap Extractor 6062 | -9/Mines | Discovered new exit (range 11) 6088 | -9/Mines | Discovered new exit (range 7) 6101 | -9/Mines | Learned 2 Materials zone layouts 6129 | -9/Mines | Central database locked down 6383 | -9/Mines | A Derelict revealed a hidden shortcut to a safe place 6958 | -9/Mines | Deemed a non-threat by the Exiles lab entrance 6958 | -9/Mines | Discovered new exit (range 5) 6971 | -9/Mines | Entered Exiles 7070 | -9/Exiles | Met 8R-AWN 7121 | -9/Exiles | Met EX-HEX 7249 | -9/Exiles | Met EX-DEC 7262 | -9/Exiles | Learned location of Zion (-7) 7315 | -9/Exiles | Build established: Scavenger-Mutant 7316 | -9/Exiles | Met EX-BIN 7364 | -9/Exiles | Aligned with FarCom system 7368 | -9/Exiles | Given EX-Vault access code 7441 | -9/Exiles | Opened EX-Vault 7465 | -9/Exiles | Found Lightpack 2.0 7533 | -9/Exiles | Warned to stay clear of 0b10 Research branches 7573 | -9/Exiles | Exiles lab attacked by MAIN.C 7719 | -9/Exiles | Discovered new exit (range 10) 7736 | -9/Exiles | Left Exiles lab with Lightpack 2.0 7736 | -9/Exiles | Entered Mines 8133 | -8/Mines | Lost 5 parts (1p1n1u2w) 8660 | -8/Mines | Discovered new exit (range 8) 8959 | -8/Mines | Discovered new exit (range 11) 9665 | -8/Mines | Entered Materials 9665 | -8/Materials | Evolved 2 slots: Utility x2 10117 | -8/Materials | Destroyed 7 combat bots 10179 | -8/Materials | Discovered new exit (range 14) 10377 | -8/Materials | Repaired Med. Armor Plating 10405 | -8/Materials | Repaired Lgt. Treads 10432 | -8/Materials | Repaired Assault Rifle 10466 | -8/Materials | Repaired Imp. Ion Engine 10899 | -8/Materials | Discovered new exit (range 12) 11029 | -8/Materials | Repaired Med. Armor Plating 11695 | -8/Materials | Lost 3 parts (2n1u) 12049 | -8/Materials | Core integrity fell below 50% 12724 | -8/Materials | Build established: Mutant 12885 | -8/Materials | Entered Factory 12885 | -7/Factory | Evolved 2 slots: Power x1, Utility x1 13171 | -7/Factory | Identified exit to Storage 13171 | -7/Factory | Identified exit to Lower Caves 13279 | -7/Factory | Build established: Skirmisher 14034 | -7/Factory | Fabricated Exp. Sensor Array (x1) 14064 | -7/Factory | Entered Lower Caves 14398 | -7/Lower Caves | Build established: Mutant 14538 | -7/Lower Caves | Learned location of 1 exit from Research 14538 | -7/Lower Caves | Learned Extension security intel 14538 | -7/Lower Caves | Learned Armory security intel 14538 | -7/Lower Caves | Learned Factory terminal intel 14538 | -7/Lower Caves | Learned Research garrison access intel 14737 | -7/Lower Caves | Encountered a Warlord checkpoint 14747 | -7/Lower Caves | Learned 4 Factory zone layouts 15110 | -7/Lower Caves | Learned Factory garrison access intel 15388 | -7/Lower Caves | Discovered new exit (range 13) 15406 | -7/Lower Caves | Identified exit to Lower Caves 15781 | -7/Lower Caves | Entered another Lower Caves area 15792 | -7/Lower Caves | Discovered new exit (range 12) 16438 | -7/Lower Caves | Attracted the attention of an 0b10 outpost 16460 | -7/Lower Caves | Destroyed 7 combat bots 16752 | -7/Lower Caves | Encountered a Warlord checkpoint 16764 | -7/Lower Caves | Found Prototype Device 16958 | -7/Lower Caves | Build established: Skirmisher 17243 | -7/Lower Caves | Learned location of Extension (-4) 17309 | -7/Lower Caves | Discovered new exit (range 13) 17320 | -7/Lower Caves | Attracted the attention of an 0b10 checkpoint 17334 | -7/Lower Caves | Identified exit to Zion 17380 | -7/Lower Caves | Entered Zion 17380 | -7/Zion | Accompanied by 1 ally 17469 | -7/Zion | Given the Hacking Drone Bay 17470 | -7/Zion | Found Prototype Device 17470 | -7/Zion | Identified Hacking Drone Bay 17524 | -7/Zion | Discovered new exit (range 14) 17544 | -7/Zion | Identified exit to Proximity Caves 17595 | -7/Zion | Gained Derelict followers 17650 | -7/Zion | Identified exit to Deep Caves 17669 | -7/Zion | System corruption cleaned by Quarantine Array 17710 | -7/Zion | Build established: Mutant 18009 | -7/Zion | Found Prototype Device 18028 | -7/Zion | Build established: Skirmisher 18149 | -7/Zion | Gained Derelict followers 18264 | -7/Zion | Identified Phasing AFG 18509 | -7/Zion | Learned location of Data Miner (-6) 18573 | -7/Zion | Build established: Assassin 18948 | -7/Zion | Build established: Mutant 18979 | -7/Zion | Saw the warning signs outside the Deep Caves entrance 19003 | -7/Zion | Entered Deep Caves 19003 | -7/Deep Caves | Accompanied by 7 allies 19494 | -7/Deep Caves | Attacked by Z-Imprinter 19532 | -7/Deep Caves | Allies destroyed Z-Imprinter 19688 | -7/Deep Caves | Z-Facility disabled 19724 | -7/Deep Caves | Lost 4 parts (1p1n1u1w) 19742 | -7/Deep Caves | Found Prototype Protection 19905 | -7/Deep Caves | Identified Zio. Weapon Casing 19907 | -7/Deep Caves | Found Zio. Weapon Casing 20054 | -7/Deep Caves | Found Prototype Protection 20063 | -7/Deep Caves | Identified Zio. Heavy Carapace 20067 | -7/Deep Caves | Found Zio. Heavy Carapace 20111 | -7/Deep Caves | Found Zio. Weapon Casing 20139 | -7/Deep Caves | Found Zio. Heavy Carapace 20146 | -7/Deep Caves | Found Zio. Heavy Carapace 20399 | -7/Deep Caves | Found Zio. Weapon Casing 20414 | -7/Deep Caves | Found Zio. Weapon Casing 21113 | -7/Deep Caves | Discovered new exit (range 6) 21345 | -7/Deep Caves | Spotted as-29298 21376 | -7/Deep Caves | Destroyed as-29298 21426 | -7/Deep Caves | Spotted as-61512 21443 | -7/Deep Caves | Destroyed as-61512 21595 | -7/Deep Caves | Found AWS/Gauss 21619 | -7/Deep Caves | Triggered Deep Caves wall 21619 | -7/Deep Caves | Spotted AS-57295 21619 | -7/Deep Caves | Spotted AS-42707 21627 | -7/Deep Caves | Exposed GOLEM chamber 21635 | -7/Deep Caves | Destroyed AS-42707 21644 | -7/Deep Caves | Destroyed AS-57295 21669 | -7/Deep Caves | Destroyed 34 combat bots 21671 | -7/Deep Caves | Lost 6 parts (1n5u) 22098 | -7/Deep Caves | Found GOLEM Unit 22102 | -7/Deep Caves | Found GOLEM Unit 22149 | -7/Deep Caves | Found GOLEM Unit 22154 | -7/Deep Caves | Found GOLEM Unit 22158 | -7/Deep Caves | Found GOLEM Unit 22164 | -7/Deep Caves | Found GOLEM Unit 22168 | -7/Deep Caves | Found GOLEM Unit 22194 | -7/Deep Caves | Found GOLEM Unit 22198 | -7/Deep Caves | Found GOLEM Unit 22202 | -7/Deep Caves | Found GOLEM Unit 22205 | -7/Deep Caves | Found GOLEM Unit 22209 | -7/Deep Caves | Found GOLEM Unit 22213 | -7/Deep Caves | Found GOLEM Unit 22230 | -7/Deep Caves | Found GOLEM Unit 22234 | -7/Deep Caves | Found GOLEM Unit 22238 | -7/Deep Caves | Found GOLEM Unit 22258 | -7/Deep Caves | Found GOLEM Unit 22262 | -7/Deep Caves | Found GOLEM Unit 22566 | -7/Deep Caves | Build established: Hauler-Golem 22793 | -7/Deep Caves | Entered Proximity Caves 22794 | -6/Proximity Caves | Identified exit to Factory 22825 | -6/Proximity Caves | Core integrity fell below 50% 23353 | -6/Proximity Caves | Attracted the attention of an 0b10 checkpoint 23805 | -6/Proximity Caves | Learned Factory terminal intel 24962 | -6/Proximity Caves | Spotted B-75 Beast 24975 | -6/Proximity Caves | Entered Factory 24975 | -6/Factory | Evolved 2 slots: Utility x2 24976 | -6/Factory | Identified exit to Factory 24977 | -6/Factory | Loaded intel: 25 terminal locations 24978 | -6/Factory | Loaded intel: 4 garrison access locations 25006 | -6/Factory | Identified exit to Lower Caves 25732 | -6/Factory | Entered Lower Caves 26675 | -6/Lower Caves | Learned Factory stockpile data 27291 | -6/Lower Caves | Discovered new exit (range 9) 27304 | -6/Lower Caves | Identified exit to Lower Caves 27390 | -6/Lower Caves | Encountered a Warlord checkpoint 27938 | -6/Lower Caves | Entered another Lower Caves area 28022 | -6/Lower Caves | Attracted the attention of an 0b10 checkpoint 28051 | -6/Lower Caves | Learned 8 Factory zone layouts 28364 | -6/Lower Caves | Discovered exit to Factory (range 6) 28866 | -6/Lower Caves | Found Alien Artifact 28866 | -6/Lower Caves | Identified Core Expander 28866 | -6/Lower Caves | Installed Core Expander, added new Power slot 29015 | -6/Lower Caves | Discovered new exit (range 12) 30055 | -6/Lower Caves | Identified exit to Data Miner 30057 | -6/Lower Caves | Entered Data Miner 30057 | -6/Data Miner | Discovered new exit (range 6) 30092 | -6/Data Miner | Met Data Miner 30128 | -6/Data Miner | Learned location of Section 7 (-2) 30128 | -6/Data Miner | Acquired the access code to Warlord's prototype stash 30153 | -6/Data Miner | Received God Mode back door access code from Data Miner 30191 | -6/Data Miner | Identified exit to Proximity Caves 30207 | -6/Data Miner | Entered Proximity Caves 30618 | -5/Proximity Caves | Escorted by Enhanced Grunt 30621 | -5/Proximity Caves | P-70 Sage assimilated allied A4-R06(S) 31431 | -5/Proximity Caves | Learned Factory stockpile data 31476 | -5/Proximity Caves | Attracted the attention of an 0b10 outpost 32267 | -5/Proximity Caves | Discovered exit to Factory (range 13) 32290 | -5/Proximity Caves | Learned Factory security intel 32611 | -5/Proximity Caves | Entered Factory 32611 | -5/Factory | Evolved 2 slots: Utility x2 32612 | -5/Factory | Identified exit to Upper Caves 32616 | -5/Factory | Loaded intel: 26 terminal locations 33415 | -5/Factory | Discovered exit to Upper Caves (range 16) 33684 | -5/Factory | Entered Upper Caves 34104 | -5/Upper Caves | Learned Factory non-interactive machine intel 34366 | -5/Upper Caves | Encountered a Warlord checkpoint 34741 | -5/Upper Caves | Discovered new exit (range 6) 34749 | -5/Upper Caves | Identified exit to Upper Caves 35176 | -5/Upper Caves | Entered another Upper Caves area 35346 | -5/Upper Caves | Discovered new exit (range 16) 35364 | -5/Upper Caves | Encountered a Warlord checkpoint 35372 | -5/Upper Caves | Identified exit to Factory 35904 | -5/Upper Caves | Discovered new exit (range 9) 35918 | -5/Upper Caves | Identified exit to Zhirov 36633 | -5/Upper Caves | Entered Zhirov 36633 | -5/Zhirov | Discovered new exit (range 3) 36666 | -5/Zhirov | Met Zhirov 36705 | -5/Zhirov | Learned location of Quarantine (-2) 36705 | -5/Zhirov | Learned location of Testing (-3) 36705 | -5/Zhirov | Learned location of Command (-1) 36716 | -5/Zhirov | Zhirov requested help retrieving the SGEMP Prototype 36744 | -5/Zhirov | Found Alien Artifact 36744 | -5/Zhirov | Identified Integrated Dissipator 36744 | -5/Zhirov | Installed Integrated Dissipator, increased core heat dissipation (+20) 36766 | -5/Zhirov | Found Alien Artifact 36943 | -5/Zhirov | Identified exit to Proximity Caves 36944 | -5/Zhirov | Entered Proximity Caves 37554 | -4/Proximity Caves | Learned location of Armory (-3) 38451 | -4/Proximity Caves | Discovered exit to Factory (range 8) 38459 | -4/Proximity Caves | Learned Research stockpile data 38873 | -4/Proximity Caves | Entered Factory 38873 | -4/Factory | Evolved 2 slots: Utility x2 38874 | -4/Factory | Identified exit to Extension 38876 | -4/Factory | Loaded intel: 193 non-interactive machine locations 39401 | -4/Factory | Entered Extension 39489 | -4/Extension | Rescued a captive Derelict 39490 | -4/Extension | Rescued a captive Derelict 39779 | -4/Extension | Build established: Hauler-Mutant 39939 | -4/Extension | Rescued a captive Derelict 39940 | -4/Extension | Rescued a captive Derelict 40148 | -4/Extension | Rescued a captive Derelict 40149 | -4/Extension | Rescued a captive Derelict 40237 | -4/Extension | Rescued A7 40286 | -4/Extension | Rescued a captive Derelict 40294 | -4/Extension | Rescued a captive Derelict 40401 | -4/Extension | First assault squad dispatched 40424 | -4/Extension | Incoming assault squad redirected 40436 | -4/Extension | Rescued a captive Derelict 40436 | -4/Extension | Rescued a captive Derelict 40461 | -4/Extension | Rescued a captive Derelict 40477 | -4/Extension | Rescued a captive Derelict 40478 | -4/Extension | Rescued a captive Derelict 40582 | -4/Extension | Discovered new exit (range 10) 40584 | -4/Extension | Discovered new exit (range 6) 40599 | -4/Extension | Identified exit to Cetus 40629 | -4/Extension | Identified exit to Research 40643 | -4/Extension | Entered Cetus 40643 | -4/Cetus | Accompanied by 12 allies (A7) 40648 | -4/Cetus | Acquired a Cetus Manufacturing Module code from A7 40669 | -4/Cetus | Spotted Cetus Guard 40669 | -4/Cetus | Spotted Cetus Guard 40670 | -4/Cetus | Spotted Cetus Guard 40672 | -4/Cetus | Spotted Cetus Guard 40683 | -4/Cetus | Allies destroyed Cetus Guard 40683 | -4/Cetus | Allies destroyed Cetus Guard 40685 | -4/Cetus | Allies destroyed Cetus Guard 40688 | -4/Cetus | Allies destroyed Cetus Guard 40773 | -4/Cetus | P-70 Sage assimilated allied SH-WW6(h) 40806 | -4/Cetus | Started Cetus Manufacturing Module 40825 | -4/Cetus | Escorted A7 to Cetus Mainframe 40831 | -4/Cetus | Manufactured an Enhanced Grunt 40848 | -4/Cetus | Discovered new exit (range 16) 40856 | -4/Cetus | Manufactured an Enhanced Grunt 40881 | -4/Cetus | Manufactured an Enhanced Grunt 40886 | -4/Cetus | Spotted Cetus Guard 40889 | -4/Cetus | Spotted Cetus Guard 40889 | -4/Cetus | Spotted Cetus Guard 40893 | -4/Cetus | Spotted Cetus Guard 40896 | -4/Cetus | Allies destroyed Cetus Guard 40905 | -4/Cetus | Destroyed Cetus Guard 40906 | -4/Cetus | Manufactured an Enhanced Grunt 40914 | -4/Cetus | Destroyed Cetus Guard 40914 | -4/Cetus | Allies destroyed Cetus Guard 40929 | -4/Cetus | Extracted ID and sensor layout for unrecognized location from A7's data core 40929 | -4/Cetus | Discovered exit to Research (range 16) 40931 | -4/Cetus | Manufactured an Enhanced Grunt 40944 | -4/Cetus | Met Revision 17 40952 | -4/Cetus | Destroyed Revision 17 41065 | -4/Cetus | Identified exit to Archives 41099 | -4/Cetus | Entered Archives 41099 | -4/Archives | Accompanied by 4 allies 41408 | -4/Archives | Discovered new exit (range 22) 41429 | -4/Archives | Discovered new exit (range 19) 41459 | -4/Archives | Discovered exit to Research (range 18) 41492 | -4/Archives | Build established: Hauler-Golem 41898 | -4/Archives | Entered Hub_04(d) 41898 | -4/Hub_04(d) | Accompanied by 4 allies 42169 | -4/Hub_04(d) | Incoming investigation squad redirected 42173 | -4/Hub_04(d) | First assault squad dispatched 42466 | -4/Hub_04(d) | Incoming assault squad redirected 43001 | -4/Hub_04(d) | Incoming assault squad redirected 43083 | -4/Hub_04(d) | Network Hub disabled 43086 | -4/Hub_04(d) | Entered Research 43086 | -3/Research | Evolved 2 slots: Propulsion x1, Weapon x1 43087 | -3/Research | Identified exit to Research 43089 | -3/Research | Loaded intel: 4 garrison access locations 43401 | -3/Research | Found Prototype Processor 43476 | -3/Research | Found Quantum Capacitor 43934 | -3/Research | Identified exit to Armory 43934 | -3/Research | Identified exit to Testing 44284 | -3/Research | Destroyed 7 combat bots 44284 | -3/Research | Lost 5 parts (1p1n2u1w) 44676 | -3/Research | Found Prototype Device 44807 | -3/Research | Cargo convoy interrupted 44831 | -3/Research | Incoming assault squad redirected 44861 | -3/Research | First assault squad dispatched 44964 | -3/Research | Found Antimissile System 45012 | -3/Research | Discovered exit to Research (range 19) 45181 | -3/Research | Garrison activated, responded to threat 45277 | -3/Research | Lost 3 parts (1p1n1w) 45783 | -3/Research | Entered Armory 45931 | -3/Armory | Identified Transdimensional Reconstructor 45931 | -3/Armory | Warped through subspace to slip node 45931 | -3/Armory | Discovered new exit (range 1) 45933 | -3/Armory | Entered Lab 45933 | -3/Lab | Discovered exit to Research (range 9) 45953 | -3/Lab | Hidden lab's door opened automatically 45953 | -3/Lab | Sensor layout match revealed 45954 | -3/Lab | Gained access to the hidden lab's interior 45988 | -3/Lab | Unable to decrypt terminal 46136 | -3/Lab | Found Alien Artifact 46175 | -3/Lab | Found Transdimensional Reconstructor 46181 | -3/Lab | Found Alien Artifact 46194 | -3/Lab | Found Alien Artifact 46231 | -3/Lab | Found Prototype Protection 46231 | -3/Lab | Identified Med. Regenerative Plating 46330 | -3/Lab | Identified Core Reset Matrix 46330 | -3/Lab | Identified Core Regenerator 46330 | -3/Lab | Identified Integrated Reactor 46330 | -3/Lab | Used Core Reset Matrix 46338 | -3/Lab | Installed Integrated Reactor, increased core energy generation (+10) 46906 | -3/Lab | Build established: Generator-Golem 47302 | -3/Lab | Entered Research 47302 | -2/Research | Accompanied by 5 allies 47302 | -2/Research | Evolved 2 slots: Power x1, Propulsion x1 47319 | -2/Research | Found Prototype Device 47515 | -2/Research | Spotted B-90 Cyclops 47573 | -2/Research | Identified exit to Quarantine 47746 | -2/Research | Identified Adv. EM Disruption Field 47746 | -2/Research | Identified Exp. Thermal Shield 47746 | -2/Research | Identified Exp. Target Analyzer 47803 | -2/Research | Found Prototype Device 47840 | -2/Research | Discovered new exit (range 18) 48012 | -2/Research | Entered Access 48012 | -1/Access | Accompanied by 5 allies 48012 | -1/Access | Evolved 2 slots: Propulsion x2 48239 | -1/Access | Identified Exp. Actuator Array 48393 | -1/Access | Build established: Generator-Skirmisher 48544 | -1/Access | Spotted B-99 Colossus 48563 | -1/Access | Allies destroyed B-99 Colossus 48565 | -1/Access | Spotted B-99 Colossus 48570 | -1/Access | Allies destroyed B-99 Colossus 48601 | -1/Access | Garrison activated, responded to threat 48738 | -1/Access | Incoming assault squad redirected 49012 | -1/Access | First assault squad dispatched 49030 | -1/Access | Incoming assault squad redirected 49030 | -1/Access | Incoming assault squad redirected 49041 | -1/Access | High security lockdown imminent 49113 | -1/Access | Found Prototype Launcher 49121 | -1/Access | High security lockdown engaged 49123 | -1/Access | Found Prototype Launcher 49324 | -1/Access | Build established: Generator-Golem 49351 | -1/Access | Destroyed 8 combat bots 49373 | -1/Access | Spotted Executioner 49376 | -1/Access | Spotted Executioner 49388 | -1/Access | Spotted Investigator 49392 | -1/Access | Scanned by Researcher 49395 | -1/Access | Allies destroyed Executioner 49399 | -1/Access | Identified Ragnarok Missile Launcher (x2) 49400 | -1/Access | Allies destroyed Executioner 49405 | -1/Access | Destroyed Investigator 49444 | -1/Access | Destroyed 12 combat bots 49501 | -1/Access | Spotted Investigator 49505 | -1/Access | Spotted Executioner 49506 | -1/Access | Spotted Executioner 49513 | -1/Access | Allies destroyed Investigator 49516 | -1/Access | Destroyed Executioner 49525 | -1/Access | Spotted Executioner 49531 | -1/Access | Destroyed Executioner 49538 | -1/Access | Destroyed Executioner 49559 | -1/Access | Destroyed 14 combat bots 49596 | -1/Access | Destroyed 11 combat bots 49685 | -1/Access | Spotted Striker 49686 | -1/Access | Spotted Striker 49686 | -1/Access | Spotted Striker 49692 | -1/Access | Destroyed Striker 49692 | -1/Access | Spotted Striker 49692 | -1/Access | Spotted Executioner 49702 | -1/Access | Destroyed Striker 49704 | -1/Access | Spotted Striker 49705 | -1/Access | Spotted Executioner 49705 | -1/Access | Spotted Striker 49707 | -1/Access | Destroyed Executioner 49708 | -1/Access | Sterilization system engaged 49708 | -1/Access | Spotted Striker 49708 | -1/Access | Spotted Executioner 49708 | -1/Access | Spotted Striker 49709 | -1/Access | Destroyed Striker 49709 | -1/Access | Destroyed Striker 49718 | -1/Access | Warped through subspace 49745 | -1/Access | Destroyed Striker 49756 | -1/Access | System corruption reached 10% 49766 | -1/Access | Destroyed 20 combat bots 49801 | -1/Access | Lost 10 parts (3p6u1w) 49828 | -1/Access | Used Core Regenerator, restored core integrity (+400) 49829 | -1/Access | Released all parts (14) 49834 | -1/Access | Spotted B-99 Colossus 49856 | -1/Access | Lost 5 parts (2n1u2w) 49921 | -1/Access | Door terminal overloaded 49924 | -1/Access | Discovered new exit (range 12) 49931 | *** | Heading to fleet! Last Messages --------------- 49873_ Slug penetrates U-05 Engineer. 49874_ Penetrated by Slug. 49874_ Slug penetrates T-07 Excavator. 49874_ T-07 Excavator destroyed. 49874_ U-05 Engineer destroyed. 49874_ Acquired 30 matter. 49878_ GOLEM Unit beginning Asb. Alloy Leg integration. 49885_ System corrupted: Matter fused (-9). 49896_ U-05 Engineer destroyed. 49913_ QJ=B:LK%L9BATYGX0DDCBXKX1MGEGD6 49913_ P-80 Master resets Striker, system corruption cleaned. 49919_ Destroyed Prototype Protection. 49919_ Biometal Heavy Treads destroyed. 49921_ System overload, Sealed Barrier opened. 49921_ Terminal disabled. 49922_ Striker destroyed. 49924_ Main Access Shell breached. 49924_ EXIT=FOUND 49927_ The unstable cave ceiling collapses. 49929_ The Access Shell folds into the floor. Map ----- +----------------------------------------------------+ | ###?#???# ? ?######?## ? ?##?#?#?? | | # ? ?######## ?###??## | | ?? ???""" ###?#?### """"" ? ##?????? | | ? #""?? ##?###?## = """"" ??###????? | | #""" ? ?#######?# """"" ##?????? | | #?? ?#???#### """"" #?###??? | | ? ??#"" ##?###?## """?" ? #?#?#?#?? | | ? ??? #"" ######### ???? ?#???#???? | | ? ?#? # #### ? ? ?###?#? ? | | ###+##### ##?########?#???####?####??? | | ##### # ###################????????? | | != ??#?####?# | | != KpppK ????????????? | | # % ""##??#?#??#??#?????? | | # * ""#??##?????????????? | | # "#??#??? ??????????? | | # #### T#?????? ??????????? | | # #????# ""#?????????????????? | | # #????# ""#?????????????????? | | # #???## ""##????????????????? | | # #???# #????????????????? | | # #???## ##????????????????? | | #????# #?????????????????? | | "" #????# #?????????????????? | | # "" #????# #?????????????????? | | # """""" #????# @" #?????????????????? | | # """""" #????# "" #?????????????????? | | # "" #????# #?????????????????? | | # "" #????# #?????????????????# | | # ! #????# #????????????????#? | | # #????#""""""""""#?????????????????? | | # #?????????????????????????????????? | | # #????????????????????????????????## | | #????????????????????????????????## | | ####+###### #????????????????????????????????## | | ??????????######??????BB????BB??????????????#??### | | ??????????????????????BB????BB??????????????????# | | ???????????????????????????????????????????????#? | | ????????????????????????????????????????????#??## | | ?????????????????????????????????????????????#??# | | ?????????????????????????????????????????????###? | | ??????????????????????????????????????????????#?## | | ????????????????????????????????????????????????## | | ????????????????????????????????????????????? ???# | | ??????????????????????????????????????????? ? ?#? | | ?????????????????????????????????????????????????# | | ????????????????????????????????????????????????# | | ???????????????????????????????????????????? ? #? | | ?????????????????????????????????????????????? ?#? | | ????????????????????????????????????????????? #?? | +----------------------------------------------------+ Best States ------------- Heat Dissipation 117 Energy Generation 95 Energy Capacity 1850 Matter Stores 300 Matter Capacity 300 Sight Range 22 Robot Scan Range 20 Terrain Scan Range 20 Terrain Scan Density 210 Jamming Range 16 Additional Mass Support 20 Armor Coverage 1600 Resistance: KI 20 Resistance: TH 15 Resistance: EX 15 Resistance: EM 25 Resistance: I 15 Resistance: S 15 Resistance: P 15 Weapon Shielding 100 Melee Speed Boost 30 Phase Shifting 8 Evasion (%) 63 Targeting Accuracy 8 Core Analysis 8 Recoil Reduction 2 Particle Charging 30 Offensive Hacking 20 Defensive Hacking 22 Authchip Count 1 Item Schematics ----------------- None Robot Schematics ------------------ None Fabricated ------------ Exp. Sensor Array | x1 | -7/Factory | Authchip Alien Tech Used ----------------- Core Expander Integrated Dissipator Transdimensional Reconstructor Core Reset Matrix Integrated Reactor Core Regenerator Achievements -------------- None Challenges ------------ None Game ------ Seed RefineryTachyonRefractor Manual? 0 Play Time 07:38:41 Cumulative 190.8 hours Start 2022.06.17 @ 18:56:10 End 2022.06.21 @ 08:29:51 Sessions 30 Manual Loads 0 Difficulty Rogue Special Mode None Game No. 31 Rogue 24 Adventurer 1 Explorer 6 Win Type 2 Total 11 Types 4/1/5/0/0/1/0/0/0 Lore% 76 Gallery% 73 Achievement% 66 Wizard Run 0 Options --------- ASCII 0 Keyboard 0 Movement Mouse Keybinds 0 Fullscreen 1 Font 18/SmallcapsGlow Map View 76x50 Tactical HUD 1 Map Filters NONE Filters NONE Steam 1 RUN: 70bbfb2c-dc4a-4c55-811c-9c1deac468f5